NUMERO_MANDATO;RIGA_MANDATO;QUIET;IMPORTO_RIGA;IMPORTO_MANDATO;BENEFICIARIO;CIG;TITOLO_PAGAMENTO;DATA_MANDATO;CAPITOLO;ARTICOLO;NUMERO_IMPEGNO;TITOLO;DESCR_TITOLO;LIVELLO_II;DESCR_LIVELLO_II;LIVELLO_III;DESCR_LIVELLO_III;LIVELLO_IV;DESCR_LIVELLO_IV;LIVELLO_V;DESCR_LIVELLO_V;DATA_PAG_EFF
395;1;0;221,3;5.071,70;OMESSO NOMINATIVO NEL RISPETTO DELLA NORMATIVA SULLA PROTEZIONE DATI PERSONALI; ;CONTRIBUTO REGIONALE LIBRI DI TESTO, SCUOLA SECONDARIA - ANNO SCOLASTICO 2017-2018.;11/04/2018;6980;0;104;1;Spese correnti;4;Trasferimenti correnti;2;Trasferimenti correnti a Famiglie;5;Altri trasferimenti a famiglie;999;Altri trasferimenti a famiglie n.a.c.;11/04/2018
395;2;0;232,15;5.071,70;OMESSO NOMINATIVO NEL RISPETTO DELLA NORMATIVA SULLA PROTEZIONE DATI PERSONALI; ;CONTRIBUTO REGIONALE LIBRI DI TESTO, SCUOLA SECONDARIA - ANNO SCOLASTICO 2017-2018.;11/04/2018;6980;0;104;1;Spese correnti;4;Trasferimenti correnti;2;Trasferimenti correnti a Famiglie;5;Altri trasferimenti a famiglie;999;Altri trasferimenti a famiglie n.a.c.;11/04/2018
395;3;0;392,9;5.071,70;OMESSO NOMINATIVO NEL RISPETTO DELLA NORMATIVA SULLA PROTEZIONE DATI PERSONALI; ;CONTRIBUTO REGIONALE LIBRI DI TESTO, SCUOLA SECONDARIA - ANNO SCOLASTICO 2017-2018.;11/04/2018;6980;0;104;1;Spese correnti;4;Trasferimenti correnti;2;Trasferimenti correnti a Famiglie;5;Altri trasferimenti a famiglie;999;Altri trasferimenti a famiglie n.a.c.;11/04/2018
395;4;0;243;5.071,70;OMESSO NOMINATIVO NEL RISPETTO DELLA NORMATIVA SULLA PROTEZIONE DATI PERSONALI; ;CONTRIBUTO REGIONALE LIBRI DI TESTO, SCUOLA SECONDARIA - ANNO SCOLASTICO 2017-2018.;11/04/2018;6980;0;104;1;Spese correnti;4;Trasferimenti correnti;2;Trasferimenti correnti a Famiglie;5;Altri trasferimenti a famiglie;999;Altri trasferimenti a famiglie n.a.c.;11/04/2018
395;5;0;180,04;5.071,70;OMESSO NOMINATIVO NEL RISPETTO DELLA NORMATIVA SULLA PROTEZIONE DATI PERSONALI; ;CONTRIBUTO REGIONALE LIBRI DI TESTO, SCUOLA SECONDARIA - ANNO SCOLASTICO 2017-2018.;11/04/2018;6980;0;104;1;Spese correnti;4;Trasferimenti correnti;2;Trasferimenti correnti a Famiglie;5;Altri trasferimenti a famiglie;999;Altri trasferimenti a famiglie n.a.c.;11/04/2018
395;6;0;172,5;5.071,70;OMESSO NOMINATIVO NEL RISPETTO DELLA NORMATIVA SULLA PROTEZIONE DATI PERSONALI; ;CONTRIBUTO REGIONALE LIBRI DI TESTO, SCUOLA SECONDARIA - ANNO SCOLASTICO 2017-2018.;11/04/2018;6980;0;104;1;Spese correnti;4;Trasferimenti correnti;2;Trasferimenti correnti a Famiglie;5;Altri trasferimenti a famiglie;999;Altri trasferimenti a famiglie n.a.c.;11/04/2018
395;7;0;197,76;5.071,70;OMESSO NOMINATIVO NEL RISPETTO DELLA NORMATIVA SULLA PROTEZIONE DATI PERSONALI; ;CONTRIBUTO REGIONALE LIBRI DI TESTO, SCUOLA SECONDARIA - ANNO SCOLASTICO 2017-2018.;11/04/2018;6980;0;104;1;Spese correnti;4;Trasferimenti correnti;2;Trasferimenti correnti a Famiglie;5;Altri trasferimenti a famiglie;999;Altri trasferimenti a famiglie n.a.c.;11/04/2018
395;8;0;36,9;5.071,70;OMESSO NOMINATIVO NEL RISPETTO DELLA NORMATIVA SULLA PROTEZIONE DATI PERSONALI; ;CONTRIBUTO REGIONALE LIBRI DI TESTO, SCUOLA SECONDARIA - ANNO SCOLASTICO 2017-2018.;11/04/2018;6980;0;104;1;Spese correnti;4;Trasferimenti correnti;2;Trasferimenti correnti a Famiglie;5;Altri trasferimenti a famiglie;999;Altri trasferimenti a famiglie n.a.c.;11/04/2018
395;9;0;117,5;5.071,70;OMESSO NOMINATIVO NEL RISPETTO DELLA NORMATIVA SULLA PROTEZIONE DATI PERSONALI; ;CONTRIBUTO REGIONALE LIBRI DI TESTO, SCUOLA SECONDARIA - ANNO SCOLASTICO 2017-2018.;11/04/2018;6980;0;104;1;Spese correnti;4;Trasferimenti correnti;2;Trasferimenti correnti a Famiglie;5;Altri trasferimenti a famiglie;999;Altri trasferimenti a famiglie n.a.c.;11/04/2018
395;10;0;245,59;5.071,70;OMESSO NOMINATIVO NEL RISPETTO DELLA NORMATIVA SULLA PROTEZIONE DATI PERSONALI; ;CONTRIBUTO REGIONALE LIBRI DI TESTO, SCUOLA SECONDARIA - ANNO SCOLASTICO 2017-2018.;11/04/2018;6980;0;104;1;Spese correnti;4;Trasferimenti correnti;2;Trasferimenti correnti a Famiglie;5;Altri trasferimenti a famiglie;999;Altri trasferimenti a famiglie n.a.c.;11/04/2018
395;11;0;290,93;5.071,70;OMESSO NOMINATIVO NEL RISPETTO DELLA NORMATIVA SULLA PROTEZIONE DATI PERSONALI; ;CONTRIBUTO REGIONALE LIBRI DI TESTO, SCUOLA SECONDARIA - ANNO SCOLASTICO 2017-2018.;11/04/2018;6980;0;104;1;Spese correnti;4;Trasferimenti correnti;2;Trasferimenti correnti a Famiglie;5;Altri trasferimenti a famiglie;999;Altri trasferimenti a famiglie n.a.c.;11/04/2018
395;12;0;123,16;5.071,70;OMESSO NOMINATIVO NEL RISPETTO DELLA NORMATIVA SULLA PROTEZIONE DATI PERSONALI; ;CONTRIBUTO REGIONALE LIBRI DI TESTO, SCUOLA SECONDARIA - ANNO SCOLASTICO 2017-2018.;11/04/2018;6980;0;104;1;Spese correnti;4;Trasferimenti correnti;2;Trasferimenti correnti a Famiglie;5;Altri trasferimenti a famiglie;999;Altri trasferimenti a famiglie n.a.c.;11/04/2018
395;13;0;285,95;5.071,70;OMESSO NOMINATIVO NEL RISPETTO DELLA NORMATIVA SULLA PROTEZIONE DATI PERSONALI; ;CONTRIBUTO REGIONALE LIBRI DI TESTO, SCUOLA SECONDARIA - ANNO SCOLASTICO 2017-2018.;11/04/2018;6980;0;104;1;Spese correnti;4;Trasferimenti correnti;2;Trasferimenti correnti a Famiglie;5;Altri trasferimenti a famiglie;999;Altri trasferimenti a famiglie n.a.c.;11/04/2018
395;14;0;115,16;5.071,70;OMESSO NOMINATIVO NEL RISPETTO DELLA NORMATIVA SULLA PROTEZIONE DATI PERSONALI; ;CONTRIBUTO REGIONALE LIBRI DI TESTO, SCUOLA SECONDARIA - ANNO SCOLASTICO 2017-2018.;11/04/2018;6980;0;104;1;Spese correnti;4;Trasferimenti correnti;2;Trasferimenti correnti a Famiglie;5;Altri trasferimenti a famiglie;999;Altri trasferimenti a famiglie n.a.c.;11/04/2018
395;15;0;182,51;5.071,70;OMESSO NOMINATIVO NEL RISPETTO DELLA NORMATIVA SULLA PROTEZIONE DATI PERSONALI; ;CONTRIBUTO REGIONALE LIBRI DI TESTO, SCUOLA SECONDARIA - ANNO SCOLASTICO 2017-2018.;11/04/2018;6980;0;104;1;Spese correnti;4;Trasferimenti correnti;2;Trasferimenti correnti a Famiglie;5;Altri trasferimenti a famiglie;999;Altri trasferimenti a famiglie n.a.c.;11/04/2018
395;16;0;139;5.071,70;OMESSO NOMINATIVO NEL RISPETTO DELLA NORMATIVA SULLA PROTEZIONE DATI PERSONALI; ;CONTRIBUTO REGIONALE LIBRI DI TESTO, SCUOLA SECONDARIA - ANNO SCOLASTICO 2017-2018.;11/04/2018;6980;0;104;1;Spese correnti;4;Trasferimenti correnti;2;Trasferimenti correnti a Famiglie;5;Altri trasferimenti a famiglie;999;Altri trasferimenti a famiglie n.a.c.;11/04/2018
395;17;0;246,1;5.071,70;OMESSO NOMINATIVO NEL RISPETTO DELLA NORMATIVA SULLA PROTEZIONE DATI PERSONALI; ;CONTRIBUTO REGIONALE LIBRI DI TESTO, SCUOLA SECONDARIA - ANNO SCOLASTICO 2017-2018.;11/04/2018;6980;0;104;1;Spese correnti;4;Trasferimenti correnti;2;Trasferimenti correnti a Famiglie;5;Altri trasferimenti a famiglie;999;Altri trasferimenti a famiglie n.a.c.;11/04/2018
395;18;0;53,35;5.071,70;OMESSO NOMINATIVO NEL RISPETTO DELLA NORMATIVA SULLA PROTEZIONE DATI PERSONALI; ;CONTRIBUTO REGIONALE LIBRI DI TESTO, SCUOLA SECONDARIA - ANNO SCOLASTICO 2017-2018.;11/04/2018;6980;0;104;1;Spese correnti;4;Trasferimenti correnti;2;Trasferimenti correnti a Famiglie;5;Altri trasferimenti a famiglie;999;Altri trasferimenti a famiglie n.a.c.;11/04/2018
395;19;0;162,95;5.071,70;OMESSO NOMINATIVO NEL RISPETTO DELLA NORMATIVA SULLA PROTEZIONE DATI PERSONALI; ;CONTRIBUTO REGIONALE LIBRI DI TESTO, SCUOLA SECONDARIA - ANNO SCOLASTICO 2017-2018.;11/04/2018;6980;0;104;1;Spese correnti;4;Trasferimenti correnti;2;Trasferimenti correnti a Famiglie;5;Altri trasferimenti a famiglie;999;Altri trasferimenti a famiglie n.a.c.;11/04/2018
395;20;0;293,65;5.071,70;OMESSO NOMINATIVO NEL RISPETTO DELLA NORMATIVA SULLA PROTEZIONE DATI PERSONALI; ;CONTRIBUTO REGIONALE LIBRI DI TESTO, SCUOLA SECONDARIA - ANNO SCOLASTICO 2017-2018.;11/04/2018;6980;0;104;1;Spese correnti;4;Trasferimenti correnti;2;Trasferimenti correnti a Famiglie;5;Altri trasferimenti a famiglie;999;Altri trasferimenti a famiglie n.a.c.;11/04/2018
395;21;0;112,13;5.071,70;OMESSO NOMINATIVO NEL RISPETTO DELLA NORMATIVA SULLA PROTEZIONE DATI PERSONALI; ;CONTRIBUTO REGIONALE LIBRI DI TESTO, SCUOLA SECONDARIA - ANNO SCOLASTICO 2017-2018.;11/04/2018;6980;0;104;1;Spese correnti;4;Trasferimenti correnti;2;Trasferimenti correnti a Famiglie;5;Altri trasferimenti a famiglie;999;Altri trasferimenti a famiglie n.a.c.;11/04/2018
395;22;0;98,82;5.071,70;OMESSO NOMINATIVO NEL RISPETTO DELLA NORMATIVA SULLA PROTEZIONE DATI PERSONALI; ;CONTRIBUTO REGIONALE LIBRI DI TESTO, SCUOLA SECONDARIA - ANNO SCOLASTICO 2017-2018.;11/04/2018;6980;0;104;1;Spese correnti;4;Trasferimenti correnti;2;Trasferimenti correnti a Famiglie;5;Altri trasferimenti a famiglie;999;Altri trasferimenti a famiglie n.a.c.;11/04/2018
395;23;0;162;5.071,70;OMESSO NOMINATIVO NEL RISPETTO DELLA NORMATIVA SULLA PROTEZIONE DATI PERSONALI; ;CONTRIBUTO REGIONALE LIBRI DI TESTO, SCUOLA SECONDARIA - ANNO SCOLASTICO 2017-2018.;11/04/2018;6980;0;104;1;Spese correnti;4;Trasferimenti correnti;2;Trasferimenti correnti a Famiglie;5;Altri trasferimenti a famiglie;999;Altri trasferimenti a famiglie n.a.c.;11/04/2018
395;24;0;165,2;5.071,70;OMESSO NOMINATIVO NEL RISPETTO DELLA NORMATIVA SULLA PROTEZIONE DATI PERSONALI; ;CONTRIBUTO REGIONALE LIBRI DI TESTO, SCUOLA SECONDARIA - ANNO SCOLASTICO 2017-2018.;11/04/2018;6980;0;104;1;Spese correnti;4;Trasferimenti correnti;2;Trasferimenti correnti a Famiglie;5;Altri trasferimenti a famiglie;999;Altri trasferimenti a famiglie n.a.c.;11/04/2018
395;25;0;143;5.071,70;OMESSO NOMINATIVO NEL RISPETTO DELLA NORMATIVA SULLA PROTEZIONE DATI PERSONALI; ;CONTRIBUTO REGIONALE LIBRI DI TESTO, SCUOLA SECONDARIA - ANNO SCOLASTICO 2017-2018.;11/04/2018;6980;0;104;1;Spese correnti;4;Trasferimenti correnti;2;Trasferimenti correnti a Famiglie;5;Altri trasferimenti a famiglie;999;Altri trasferimenti a famiglie n.a.c.;11/04/2018
395;26;0;108,55;5.071,70;OMESSO NOMINATIVO NEL RISPETTO DELLA NORMATIVA SULLA PROTEZIONE DATI PERSONALI; ;CONTRIBUTO REGIONALE LIBRI DI TESTO, SCUOLA SECONDARIA - ANNO SCOLASTICO 2017-2018.;11/04/2018;6980;0;104;1;Spese correnti;4;Trasferimenti correnti;2;Trasferimenti correnti a Famiglie;5;Altri trasferimenti a famiglie;999;Altri trasferimenti a famiglie n.a.c.;11/04/2018
395;27;0;167,5;5.071,70;OMESSO NOMINATIVO NEL RISPETTO DELLA NORMATIVA SULLA PROTEZIONE DATI PERSONALI; ;CONTRIBUTO REGIONALE LIBRI DI TESTO, SCUOLA SECONDARIA - ANNO SCOLASTICO 2017-2018.;11/04/2018;6980;0;104;1;Spese correnti;4;Trasferimenti correnti;2;Trasferimenti correnti a Famiglie;5;Altri trasferimenti a famiglie;999;Altri trasferimenti a famiglie n.a.c.;11/04/2018
395;28;0;182,1;5.071,70;OMESSO NOMINATIVO NEL RISPETTO DELLA NORMATIVA SULLA PROTEZIONE DATI PERSONALI; ;CONTRIBUTO REGIONALE LIBRI DI TESTO, SCUOLA SECONDARIA - ANNO SCOLASTICO 2017-2018.;11/04/2018;6980;0;104;1;Spese correnti;4;Trasferimenti correnti;2;Trasferimenti correnti a Famiglie;5;Altri trasferimenti a famiglie;999;Altri trasferimenti a famiglie n.a.c.;11/04/2018
396;1;0;145;3.648,00;ANDREUZZA VILMA; ;ELEZIONI POLITICHE DEL 04/03/2018 - COMPENSO PER COMPONENTI DEI SEGGI;11/04/2018;435;0;143;1;Spese correnti;3;Acquisto di beni e servizi;2;Acquisto di servizi;99;Altri servizi;4;Altre spese per consultazioni elettorali dell'ente;11/04/2018
396;2;0;145;3.648,00;BATTISTUTTA ALESSIA; ;ELEZIONI POLITICHE DEL 04/03/2018 - COMPENSO PER COMPONENTI DEI SEGGI;11/04/2018;435;0;143;1;Spese correnti;3;Acquisto di beni e servizi;2;Acquisto di servizi;99;Altri servizi;4;Altre spese per consultazioni elettorali dell'ente;11/04/2018
396;3;0;145;3.648,00;BERNARDOTTO LISA; ;ELEZIONI POLITICHE DEL 04/03/2018 - COMPENSO PER COMPONENTI DEI SEGGI;11/04/2018;435;0;143;1;Spese correnti;3;Acquisto di beni e servizi;2;Acquisto di servizi;99;Altri servizi;4;Altre spese per consultazioni elettorali dell'ente;11/04/2018
396;4;0;145;3.648,00;BERTI DAVIDE; ;ELEZIONI POLITICHE DEL 04/03/2018 - COMPENSO PER COMPONENTI DEI SEGGI;11/04/2018;435;0;143;1;Spese correnti;3;Acquisto di beni e servizi;2;Acquisto di servizi;99;Altri servizi;4;Altre spese per consultazioni elettorali dell'ente;11/04/2018
396;5;0;187;3.648,00;BORTOLUSSI LANDRY; ;ELEZIONI POLITICHE DEL 04/03/2018 - COMPENSO PER COMPONENTI DEI SEGGI;11/04/2018;435;0;143;1;Spese correnti;3;Acquisto di beni e servizi;2;Acquisto di servizi;99;Altri servizi;4;Altre spese per consultazioni elettorali dell'ente;11/04/2018
396;6;0;145;3.648,00;CAMPANERUT JESSICA; ;ELEZIONI POLITICHE DEL 04/03/2018 - COMPENSO PER COMPONENTI DEI SEGGI;11/04/2018;435;0;143;1;Spese correnti;3;Acquisto di beni e servizi;2;Acquisto di servizi;99;Altri servizi;4;Altre spese per consultazioni elettorali dell'ente;11/04/2018
396;7;0;145;3.648,00;CAROLI FABIANO; ;ELEZIONI POLITICHE DEL 04/03/2018 - COMPENSO PER COMPONENTI DEI SEGGI;11/04/2018;435;0;143;1;Spese correnti;3;Acquisto di beni e servizi;2;Acquisto di servizi;99;Altri servizi;4;Altre spese per consultazioni elettorali dell'ente;11/04/2018
396;8;0;145;3.648,00;CAROLO FRANCESCA; ;ELEZIONI POLITICHE DEL 04/03/2018 - COMPENSO PER COMPONENTI DEI SEGGI;11/04/2018;435;0;143;1;Spese correnti;3;Acquisto di beni e servizi;2;Acquisto di servizi;99;Altri servizi;4;Altre spese per consultazioni elettorali dell'ente;11/04/2018
396;9;0;187;3.648,00;CAROLO GESSICA; ;ELEZIONI POLITICHE DEL 04/03/2018 - COMPENSO PER COMPONENTI DEI SEGGI;11/04/2018;435;0;143;1;Spese correnti;3;Acquisto di beni e servizi;2;Acquisto di servizi;99;Altri servizi;4;Altre spese per consultazioni elettorali dell'ente;11/04/2018
396;10;0;145;3.648,00;CAROLO LAURA; ;ELEZIONI POLITICHE DEL 04/03/2018 - COMPENSO PER COMPONENTI DEI SEGGI;11/04/2018;435;0;143;1;Spese correnti;3;Acquisto di beni e servizi;2;Acquisto di servizi;99;Altri servizi;4;Altre spese per consultazioni elettorali dell'ente;11/04/2018
396;11;0;145;3.648,00;DE LORENZI DARIO; ;ELEZIONI POLITICHE DEL 04/03/2018 - COMPENSO PER COMPONENTI DEI SEGGI;11/04/2018;435;0;143;1;Spese correnti;3;Acquisto di beni e servizi;2;Acquisto di servizi;99;Altri servizi;4;Altre spese per consultazioni elettorali dell'ente;11/04/2018
396;12;0;145;3.648,00;DE MUNARI MANUEL; ;ELEZIONI POLITICHE DEL 04/03/2018 - COMPENSO PER COMPONENTI DEI SEGGI;11/04/2018;435;0;143;1;Spese correnti;3;Acquisto di beni e servizi;2;Acquisto di servizi;99;Altri servizi;4;Altre spese per consultazioni elettorali dell'ente;11/04/2018
396;13;0;145;3.648,00;DI VINCENZO VINCENZO; ;ELEZIONI POLITICHE DEL 04/03/2018 - COMPENSO PER COMPONENTI DEI SEGGI;11/04/2018;435;0;143;1;Spese correnti;3;Acquisto di beni e servizi;2;Acquisto di servizi;99;Altri servizi;4;Altre spese per consultazioni elettorali dell'ente;11/04/2018
396;14;0;145;3.648,00;MAGAROTTO LAURA; ;ELEZIONI POLITICHE DEL 04/03/2018 - COMPENSO PER COMPONENTI DEI SEGGI;11/04/2018;435;0;143;1;Spese correnti;3;Acquisto di beni e servizi;2;Acquisto di servizi;99;Altri servizi;4;Altre spese per consultazioni elettorali dell'ente;11/04/2018
396;15;0;187;3.648,00;MARZINOTTO MICHELA; ;ELEZIONI POLITICHE DEL 04/03/2018 - COMPENSO PER COMPONENTI DEI SEGGI;11/04/2018;435;0;143;1;Spese correnti;3;Acquisto di beni e servizi;2;Acquisto di servizi;99;Altri servizi;4;Altre spese per consultazioni elettorali dell'ente;11/04/2018
396;16;0;145;3.648,00;NARDO EMANUELA; ;ELEZIONI POLITICHE DEL 04/03/2018 - COMPENSO PER COMPONENTI DEI SEGGI;11/04/2018;435;0;143;1;Spese correnti;3;Acquisto di beni e servizi;2;Acquisto di servizi;99;Altri servizi;4;Altre spese per consultazioni elettorali dell'ente;11/04/2018
396;17;0;145;3.648,00;NONIS DEBORA; ;ELEZIONI POLITICHE DEL 04/03/2018 - COMPENSO PER COMPONENTI DEI SEGGI;11/04/2018;435;0;143;1;Spese correnti;3;Acquisto di beni e servizi;2;Acquisto di servizi;99;Altri servizi;4;Altre spese per consultazioni elettorali dell'ente;11/04/2018
396;18;0;145;3.648,00;PAVAN CRISTA; ;ELEZIONI POLITICHE DEL 04/03/2018 - COMPENSO PER COMPONENTI DEI SEGGI;11/04/2018;435;0;143;1;Spese correnti;3;Acquisto di beni e servizi;2;Acquisto di servizi;99;Altri servizi;4;Altre spese per consultazioni elettorali dell'ente;11/04/2018
396;19;0;145;3.648,00;ROMANIN CATERINA; ;ELEZIONI POLITICHE DEL 04/03/2018 - COMPENSO PER COMPONENTI DEI SEGGI;11/04/2018;435;0;143;1;Spese correnti;3;Acquisto di beni e servizi;2;Acquisto di servizi;99;Altri servizi;4;Altre spese per consultazioni elettorali dell'ente;11/04/2018
396;20;0;187;3.648,00;SEGATTO ILENIA; ;ELEZIONI POLITICHE DEL 04/03/2018 - COMPENSO PER COMPONENTI DEI SEGGI;11/04/2018;435;0;143;1;Spese correnti;3;Acquisto di beni e servizi;2;Acquisto di servizi;99;Altri servizi;4;Altre spese per consultazioni elettorali dell'ente;11/04/2018
396;21;0;145;3.648,00;TOFFOLON ROSSELLA; ;ELEZIONI POLITICHE DEL 04/03/2018 - COMPENSO PER COMPONENTI DEI SEGGI;11/04/2018;435;0;143;1;Spese correnti;3;Acquisto di beni e servizi;2;Acquisto di servizi;99;Altri servizi;4;Altre spese per consultazioni elettorali dell'ente;11/04/2018
396;22;0;145;3.648,00;VALVASORI GIULIA; ;ELEZIONI POLITICHE DEL 04/03/2018 - COMPENSO PER COMPONENTI DEI SEGGI;11/04/2018;435;0;143;1;Spese correnti;3;Acquisto di beni e servizi;2;Acquisto di servizi;99;Altri servizi;4;Altre spese per consultazioni elettorali dell'ente;11/04/2018
396;23;0;145;3.648,00;ZACCHEO LEONARDO; ;ELEZIONI POLITICHE DEL 04/03/2018 - COMPENSO PER COMPONENTI DEI SEGGI;11/04/2018;435;0;143;1;Spese correnti;3;Acquisto di beni e servizi;2;Acquisto di servizi;99;Altri servizi;4;Altre spese per consultazioni elettorali dell'ente;11/04/2018
396;24;0;145;3.648,00;ZANOT LOREDANA; ;ELEZIONI POLITICHE DEL 04/03/2018 - COMPENSO PER COMPONENTI DEI SEGGI;11/04/2018;435;0;143;1;Spese correnti;3;Acquisto di beni e servizi;2;Acquisto di servizi;99;Altri servizi;4;Altre spese per consultazioni elettorali dell'ente;11/04/2018
426;1;0;26,67;26,67;DIPENDENTI COMUNALI DIVERSI; ;STIPENDI MESE DI: APRILE 18;11/04/2018;230;0;94;1;Spese correnti;3;Acquisto di beni e servizi;2;Acquisto di servizi;2;Organizzazione eventi, pubblicita` e servizi per trasferta;1;Rimborso per viaggio e trasloco;11/04/2018
439;1;0;33;33;DIPENDENTI COMUNALI DIVERSI; ;STIPENDI MESE DI: APRILE 18;11/04/2018;737;0;96;1;Spese correnti;3;Acquisto di beni e servizi;2;Acquisto di servizi;2;Organizzazione eventi, pubblicita` e servizi per trasferta;1;Rimborso per viaggio e trasloco;11/04/2018
460;1;0;2.327,54;2.327,54;COLLABORATORI E AMMINISTRATORI DIVERSI; ;STIPENDI MESE DI: APRILE 18;11/04/2018;10;0;50;1;Spese correnti;3;Acquisto di beni e servizi;2;Acquisto di servizi;1;Organi e incarichi istituzionali dell'amministrazione;1;Organi istituzionali dell'amministrazione - Indennità;11/04/2018
463;1;0;25.506,58;25.506,58;C.D.F. SRL;72056301FC;ACCONTO Fatt.n. 08  del 12/03/2018 LAVORI ABBATTIMENTO BARRIERE ARCHITETTONICHE CENTRO CULTURALE G. STEFANUTO - I SAL;13/04/2018;9450;0;327;2;Spese in conto capitale;2;Investimenti fissi lordi e acquisto di terreni;1;Beni materiali;9;Beni immobili;2;Fabbricati ad uso commerciale;13/04/2018
464;1;0;9.693,42;9.693,42;C.D.F. SRL;72056301FC;SALDO Fatt.n. 08  del 12/03/2018 LAVORI ABBATTIMENTO BARRIERE ARCHITETTONICHE CENTRO CULTURALE G. STEFANUTO - I SAL;13/04/2018;9450;0;440;2;Spese in conto capitale;2;Investimenti fissi lordi e acquisto di terreni;1;Beni materiali;9;Beni immobili;2;Fabbricati ad uso commerciale;13/04/2018
465;1;0;1.499,40;1.499,40;COOPERATIVA ITACA SOC. COOP. SOC. ONLUS;Z891CB8D22;SALDO Fatt.n. 3216/PA  del 31/12/2017;13/04/2018;6700;0;145;1;Spese correnti;3;Acquisto di beni e servizi;2;Acquisto di servizi;15;Contratti di servizio pubblico;9;Contratti di servizio di assistenza sociale domiciliare;13/04/2018
466;1;0;100;100;MAGICAR DI GIACOMIN MARCO;ZE921E2844;SALDO Fatt.n. FATTPA 2_18  del 25/01/2018;13/04/2018;6650;0;106;1;Spese correnti;3;Acquisto di beni e servizi;1;Acquisto di beni;2;Altri beni di consumo;2;Carburanti, combustibili e lubrificanti;13/04/2018
467;1;0;579;579;MAGICAR DI GIACOMIN MARCO;Z3E21EA4C7;SALDO Fatt.n. FATTPA 4_18  del 01/02/2018;13/04/2018;6650;0;133;1;Spese correnti;3;Acquisto di beni e servizi;1;Acquisto di beni;2;Altri beni di consumo;2;Carburanti, combustibili e lubrificanti;13/04/2018
468;1;0;489,75;489,75;G.A.L. VENEZIA ORIENTALE; ;QUOTA CONTRIBUZIONE AL FONDO COMUNE DEL TAVOLO DI CONCERTAZIONE DELL'IPA ANNO 2017 AL VEGAL DI PORTOGRUARO;16/04/2018;570;0;241;1;Spese correnti;4;Trasferimenti correnti;1;Trasferimenti correnti a Amministrazioni Pubbliche;2;Trasferimenti correnti a Amministrazioni Locali;999;Trasferimenti correnti a altre Amministrazioni Locali n.a.c.;16/04/2018
469;1;0;5.882,25;5.882,25;LORIS VIAGGI DI FONTANEL LORIS;6784409F67;ACCONTO Fatt.n. PA0152017  del 31/12/2017;16/04/2018;3420;0;333;1;Spese correnti;3;Acquisto di beni e servizi;2;Acquisto di servizi;15;Contratti di servizio pubblico;2;Contratti di servizio di trasporto scolastico;16/04/2018
470;1;0;361,35;6.411,35;LORIS VIAGGI DI FONTANEL LORIS;6784409F67;SALDO Fatt.n. PA0152017  del 31/12/2017;16/04/2018;3420;0;333;1;Spese correnti;3;Acquisto di beni e servizi;2;Acquisto di servizi;15;Contratti di servizio pubblico;2;Contratti di servizio di trasporto scolastico;16/04/2018
470;2;0;6.050,00;6.411,35;LORIS VIAGGI DI FONTANEL LORIS;6784409F67;SALDO Fatt.n. PA0012018  del 31/01/2018;16/04/2018;3420;0;333;1;Spese correnti;3;Acquisto di beni e servizi;2;Acquisto di servizi;15;Contratti di servizio pubblico;2;Contratti di servizio di trasporto scolastico;16/04/2018
471;1;0;6.050,00;6.050,00;LORIS VIAGGI DI FONTANEL LORIS;6784409F67;SALDO Fatt.n. PA0032018  del 28/02/2018;16/04/2018;3420;0;333;1;Spese correnti;3;Acquisto di beni e servizi;2;Acquisto di servizi;15;Contratti di servizio pubblico;2;Contratti di servizio di trasporto scolastico;16/04/2018
472;1;0;6.050,00;6.050,00;LORIS VIAGGI DI FONTANEL LORIS;6784409F67;SALDO Fatt.n. PA0052018  del 31/03/2018 TRASPORTO SCOLASTICO MESE MARZO 2018;16/04/2018;3420;0;333;1;Spese correnti;3;Acquisto di beni e servizi;2;Acquisto di servizi;15;Contratti di servizio pubblico;2;Contratti di servizio di trasporto scolastico;16/04/2018
473;1;0;1.945,90;1.945,90;COOP  NONCELLO SOC.COOP. SOCIALE ONLUS;Z4E1D242B3;SALDO Fatt.n. 2017/VPA/2562  del 31/12/2017 FT.VEND.IVA DIFF. P.A.;16/04/2018;5185;0;124;1;Spese correnti;3;Acquisto di beni e servizi;2;Acquisto di servizi;9;Manutenzione ordinaria e riparazioni;8;Manutenzione ordinaria e riparazioni di beni immobili;16/04/2018
474;1;0;273,07;273,07;L'UFFICIO SRL;Z491C725FE;ACCONTO Fatt.n. 7/P  del 31/01/2018 FATTURA PA;16/04/2018;403;0;135;1;Spese correnti;3;Acquisto di beni e servizi;2;Acquisto di servizi;7;Utilizzo di beni di terzi;8;Noleggi di impianti e macchinari;16/04/2018
475;1;0;614,2;614,2;L'UFFICIO SRL;Z491C725FE;SALDO Fatt.n. 7/P  del 31/01/2018 FATTURA PA;16/04/2018;403;0;135;1;Spese correnti;3;Acquisto di beni e servizi;2;Acquisto di servizi;7;Utilizzo di beni di terzi;8;Noleggi di impianti e macchinari;16/04/2018
476;1;0;488;488;ACCATRE S.R.L.;ZA0213B57B;SALDO Fatt.n. 1/180153  del 17/01/2018;16/04/2018;660;0;391;1;Spese correnti;3;Acquisto di beni e servizi;2;Acquisto di servizi;19;Servizi informatici e di telecomunicazioni;1;Gestione e manutenzione applicazioni;16/04/2018
477;1;0;300;300;"ISTITUTO COMPRENSIVO ""I. NIEVO""";Z331CB033D;CONTRIBUTO FINALIZZATO ALL'ACQUISTO DEL MATERIALE IGIENICO SANITARIO E DI CANCELLERIA;17/04/2018;2827;0;404;1;Spese correnti;4;Trasferimenti correnti;1;Trasferimenti correnti a Amministrazioni Pubbliche;1;Trasferimenti correnti a Amministrazioni Centrali;999;Trasferimenti correnti a altre Amministrazioni Centrali n.a.c.;17/04/2018
478;1;0;450;450;"ISTITUTO COMPRENSIVO ""I. NIEVO""";Z331CB033D;CONTRIBUTO FINALIZZATO ALL'ACQUISTO DEL MATERIALE IGIENICO SANITARIO E DI CANCELLERIA;17/04/2018;2994;0;405;1;Spese correnti;4;Trasferimenti correnti;1;Trasferimenti correnti a Amministrazioni Pubbliche;1;Trasferimenti correnti a Amministrazioni Centrali;2;Trasferimenti correnti a Ministero dell'Istruzione - Istituzioni scolastiche;17/04/2018
479;1;0;750;750;"ISTITUTO COMPRENSIVO ""I. NIEVO"""; ;ISTITUTO COMPRENSIVO - CONTRIBUTO FINALIZZATO ALL'ACQUISTO DEL MATERIALE IGIENICO SANITARIO E DI CANCELLERIA;17/04/2018;3195;0;406;1;Spese correnti;4;Trasferimenti correnti;1;Trasferimenti correnti a Amministrazioni Pubbliche;1;Trasferimenti correnti a Amministrazioni Centrali;2;Trasferimenti correnti a Ministero dell'Istruzione - Istituzioni scolastiche;17/04/2018
480;1;0;1.000,00;1.000,00;"ISTITUTO COMPRENSIVO ""I. NIEVO"""; ;ISTITUTO COMPRENSIVO - CONTRIBUTO FINALIZZATO ALL'ACQUISTO DEL MATERIALE IGIENICO SANITARIO E DI CANCELLERIA;17/04/2018;3196;0;407;1;Spese correnti;4;Trasferimenti correnti;1;Trasferimenti correnti a Amministrazioni Pubbliche;1;Trasferimenti correnti a Amministrazioni Centrali;2;Trasferimenti correnti a Ministero dell'Istruzione - Istituzioni scolastiche;17/04/2018
481;1;0;120;120;"ISTITUTO COMPRENSIVO ""I. NIEVO""";Z331CB033D;CONTRIBUTO FINALIZZATO ALL'ACQUISTO DEL MATERIALE IGIENICO SANITARIO E DI CANCELLERIA;17/04/2018;2827;0;404;1;Spese correnti;4;Trasferimenti correnti;1;Trasferimenti correnti a Amministrazioni Pubbliche;1;Trasferimenti correnti a Amministrazioni Centrali;999;Trasferimenti correnti a altre Amministrazioni Centrali n.a.c.;17/04/2018
482;1;0;180;180;"ISTITUTO COMPRENSIVO ""I. NIEVO""";Z331CB033D;CONTRIBUTO FINALIZZATO ALL'ACQUISTO DEL MATERIALE IGIENICO SANITARIO E DI CANCELLERIA;17/04/2018;2994;0;405;1;Spese correnti;4;Trasferimenti correnti;1;Trasferimenti correnti a Amministrazioni Pubbliche;1;Trasferimenti correnti a Amministrazioni Centrali;2;Trasferimenti correnti a Ministero dell'Istruzione - Istituzioni scolastiche;17/04/2018
483;1;0;300;300;"ISTITUTO COMPRENSIVO ""I. NIEVO"""; ;ISTITUTO COMPRENSIVO - CONTRIBUTO FINALIZZATO ALL'ACQUISTO DEL MATERIALE IGIENICO SANITARIO E DI CANCELLERIA;17/04/2018;3195;0;406;1;Spese correnti;4;Trasferimenti correnti;1;Trasferimenti correnti a Amministrazioni Pubbliche;1;Trasferimenti correnti a Amministrazioni Centrali;2;Trasferimenti correnti a Ministero dell'Istruzione - Istituzioni scolastiche;17/04/2018
484;1;0;400;400;"ISTITUTO COMPRENSIVO ""I. NIEVO"""; ;ISTITUTO COMPRENSIVO - CONTRIBUTO FINALIZZATO ALL'ACQUISTO DEL MATERIALE IGIENICO SANITARIO E DI CANCELLERIA;17/04/2018;3196;0;407;1;Spese correnti;4;Trasferimenti correnti;1;Trasferimenti correnti a Amministrazioni Pubbliche;1;Trasferimenti correnti a Amministrazioni Centrali;2;Trasferimenti correnti a Ministero dell'Istruzione - Istituzioni scolastiche;17/04/2018
486;1;0;3.800,00;3.800,00;A.V.I.S.; ;COMPARTECIPAZIONE ECONOMICA  PER REALIZZAZIONE MICROPROGETTO DI CUI ALLA DELIBERA DI GIUNTA N. 56 DEL 31.7.2017;23/04/2018;7003;0;433;1;Spese correnti;4;Trasferimenti correnti;4;Trasferimenti correnti a Istituzioni Sociali Private;1;Trasferimenti correnti a Istituzioni Sociali Private;1;Trasferimenti correnti a Istituzioni Sociali Private;23/04/2018
487;1;0;696,47;696,47;GLOBAL POWER SPA;622385037F;Fatt.n. V0/27092 del 01/03/2018 Fattura Energia Elettrica-municipio - mese 02/2018;23/04/2018;593;1;67;1;Spese correnti;3;Acquisto di beni e servizi;2;Acquisto di servizi;5;Utenze e canoni;4;Energia elettrica;23/04/2018
488;1;0;50,84;50,84;GLOBAL POWER SPA;622385037F;Fatt.n. V0/27098 del 01/03/2018 Fattura Energia Elettrica - Via Roma n. 80 - mese 02/2018;23/04/2018;593;2;68;1;Spese correnti;3;Acquisto di beni e servizi;2;Acquisto di servizi;5;Utenze e canoni;4;Energia elettrica;23/04/2018
489;1;0;66,89;66,89;GLOBAL POWER SPA;622385037F;Fatt.n. V0/27102 del 01/03/2018 Fattura Energia Elettrica - Magazzino comunale - Leonardo da Vinci - mese 02/2018;23/04/2018;593;3;69;1;Spese correnti;3;Acquisto di beni e servizi;2;Acquisto di servizi;5;Utenze e canoni;4;Energia elettrica;23/04/2018
490;1;0;34,04;117,45;GLOBAL POWER SPA;622385037F;Fatt.n. V0/27106 del 01/03/2018 Fattura Energia Elettrica - V. Marconi n. 24 - mese 02/2018;23/04/2018;593;4;71;1;Spese correnti;3;Acquisto di beni e servizi;2;Acquisto di servizi;5;Utenze e canoni;4;Energia elettrica;23/04/2018
490;2;0;83,41;117,45;GLOBAL POWER SPA;622385037F;Fatt.n. V0/27105 del 01/03/2018 Fattura Energia Elettrica - V. Marconi n. 24 - mese 02/2018;23/04/2018;593;4;71;1;Spese correnti;3;Acquisto di beni e servizi;2;Acquisto di servizi;5;Utenze e canoni;4;Energia elettrica;23/04/2018
491;1;0;50,43;50,43;GLOBAL POWER SPA;622385037F;Fatt.n. V0/27093 del 01/03/2018 Fattura Energia Elettrica - V. Marconi n. 26 - mese 02/2018;23/04/2018;593;6;70;1;Spese correnti;3;Acquisto di beni e servizi;2;Acquisto di servizi;5;Utenze e canoni;4;Energia elettrica;23/04/2018
492;1;0;65,07;65,07;GLOBAL POWER SPA;622385037F;Fatt.n. V0/27101 del 01/03/2018 Fattura Energia Elettrica - centro culturale - mese 02/2018;23/04/2018;595;0;72;1;Spese correnti;3;Acquisto di beni e servizi;2;Acquisto di servizi;5;Utenze e canoni;4;Energia elettrica;23/04/2018
493;1;0;352,19;352,19;GLOBAL POWER SPA;622385037F;Fatt.n. V0/27100 del 01/03/2018 Fattura Energia Elettrica - Scuola Media/Materna - mese 02/2018;23/04/2018;2803;0;74;1;Spese correnti;3;Acquisto di beni e servizi;2;Acquisto di servizi;5;Utenze e canoni;4;Energia elettrica;23/04/2018
494;1;0;419,33;419,33;GLOBAL POWER SPA;622385037F;Fatt.n. V0/27099 del 01/03/2018 Fattura Energia Elettrica - Scuola Elemenatare - mese 02/2018;23/04/2018;2975;1;73;1;Spese correnti;3;Acquisto di beni e servizi;2;Acquisto di servizi;5;Utenze e canoni;4;Energia elettrica;23/04/2018
495;1;0;564,02;564,02;GLOBAL POWER SPA;622385037F;Fatt.n. V0/27100 del 01/03/2018 Fattura Energia Elettrica - Scuola Media/Materna - mese 02/2018;23/04/2018;3186;1;75;1;Spese correnti;3;Acquisto di beni e servizi;2;Acquisto di servizi;5;Utenze e canoni;4;Energia elettrica;23/04/2018
496;1;0;31,39;31,39;GLOBAL POWER SPA;622385037F;Fatt.n. V0/27094 del 01/03/2018 Fattura Energia Elettrica - illuminazione votiva - mese 02/2018;23/04/2018;5190;0;76;1;Spese correnti;3;Acquisto di beni e servizi;2;Acquisto di servizi;5;Utenze e canoni;4;Energia elettrica;23/04/2018
497;1;0;82,56;82,56;GLOBAL POWER SPA;622385037F;Fatt.n. V0/27097 del 01/03/2018 Fattura Energia Elettrica - impianto sollevamento - mese 02/2018;23/04/2018;5810;0;80;1;Spese correnti;3;Acquisto di beni e servizi;2;Acquisto di servizi;5;Utenze e canoni;4;Energia elettrica;23/04/2018
498;1;0;906,74;906,74;GLOBAL POWER SPA;622385037F;Fatt.n. V0/27095 del 01/03/2018 Fattura Energia Elettrica - impianti sportivi - mese 02/2018;23/04/2018;6496;1;77;1;Spese correnti;3;Acquisto di beni e servizi;2;Acquisto di servizi;5;Utenze e canoni;4;Energia elettrica;23/04/2018
499;1;0;105,31;105,31;GLOBAL POWER SPA;622385037F;Fatt.n. V0/27096 del 01/03/2018 Fattura Energia Elettrica - impianti sportivi - mese 02/2018;23/04/2018;6496;2;78;1;Spese correnti;3;Acquisto di beni e servizi;2;Acquisto di servizi;5;Utenze e canoni;4;Energia elettrica;23/04/2018
500;1;0;357,4;5.812,00;GLOBAL POWER SPA;622385037F;Fatt.n. V0/39988  del 03/04/2018 Fattura Energia Elettrica - ILL PUBB VIA VENEZIA - MARZO 2018;23/04/2018;7470;0;79;1;Spese correnti;3;Acquisto di beni e servizi;2;Acquisto di servizi;5;Utenze e canoni;4;Energia elettrica;23/04/2018
500;2;0;5.454,60;5.812,00;GLOBAL POWER SPA;622385037F;Fatt.n. V0/39989  del 03/04/2018 Fattura Energia Elettrica - ILLUMINAZIONE PUBBLICA - MESE 03/2018;23/04/2018;7470;0;79;1;Spese correnti;3;Acquisto di beni e servizi;2;Acquisto di servizi;5;Utenze e canoni;4;Energia elettrica;23/04/2018
501;1;0;616,89;616,89;GLOBAL POWER SPA;622385037F;Fatt.n. V0/39973  del 03/04/2018 Fattura Energia Elettrica - Municipio - periodo marzo 2018;26/04/2018;593;1;67;1;Spese correnti;3;Acquisto di beni e servizi;2;Acquisto di servizi;5;Utenze e canoni;4;Energia elettrica;26/04/2018
502;1;0;71,02;71,02;GLOBAL POWER SPA;622385037F;Fatt.n. V0/39979  del 03/04/2018 Fattura Energia Elettrica - V. Roma Ex Distretto - periodo marzo 2018;26/04/2018;593;2;68;1;Spese correnti;3;Acquisto di beni e servizi;2;Acquisto di servizi;5;Utenze e canoni;4;Energia elettrica;26/04/2018
503;1;0;72,49;72,49;GLOBAL POWER SPA;622385037F;Fatt.n. V0/39983  del 03/04/2018 Fattura Energia Elettrica - Magazzino Leonardo da Vinci - periodo marzo 2018;26/04/2018;593;3;69;1;Spese correnti;3;Acquisto di beni e servizi;2;Acquisto di servizi;5;Utenze e canoni;4;Energia elettrica;26/04/2018
504;1;0;34,04;118,48;GLOBAL POWER SPA;622385037F;Fatt.n. V0/39987  del 03/04/2018 Fattura Energia Elettrica - V. Marconi n. 24 - periodo marzo 2018;26/04/2018;593;4;71;1;Spese correnti;3;Acquisto di beni e servizi;2;Acquisto di servizi;5;Utenze e canoni;4;Energia elettrica;26/04/2018
504;2;0;84,44;118,48;GLOBAL POWER SPA;622385037F;Fatt.n. V0/39986  del 03/04/2018 Fattura Energia Elettrica - V. Marconi n. 24 - periodo marzo 2018;26/04/2018;593;4;71;1;Spese correnti;3;Acquisto di beni e servizi;2;Acquisto di servizi;5;Utenze e canoni;4;Energia elettrica;26/04/2018
505;1;0;51,89;51,89;GLOBAL POWER SPA;622385037F;Fatt.n. V0/39974  del 03/04/2018 Fattura Energia Elettrica - Via Marconi n. 26 - periodo marzo 2018;26/04/2018;593;6;70;1;Spese correnti;3;Acquisto di beni e servizi;2;Acquisto di servizi;5;Utenze e canoni;4;Energia elettrica;26/04/2018
506;1;0;329,13;329,13;GLOBAL POWER SPA;622385037F;Fatt.n. V0/39981  del 03/04/2018 Fattura Energia Elettrica - scuola media/scuola materna - periodo marzo 2018;26/04/2018;2803;0;74;1;Spese correnti;3;Acquisto di beni e servizi;2;Acquisto di servizi;5;Utenze e canoni;4;Energia elettrica;26/04/2018
507;1;0;443,82;443,82;GLOBAL POWER SPA;622385037F;Fatt.n. V0/39980  del 03/04/2018 Fattura Energia Elettrica - Scuole elementari -  periodo marzo 2018;26/04/2018;2975;1;73;1;Spese correnti;3;Acquisto di beni e servizi;2;Acquisto di servizi;5;Utenze e canoni;4;Energia elettrica;26/04/2018
508;1;0;479,16;479,16;GLOBAL POWER SPA;622385037F;Fatt.n. V0/39981  del 03/04/2018 Fattura Energia Elettrica - scuola media/scuola materna - periodo marzo 2018;26/04/2018;3186;1;75;1;Spese correnti;3;Acquisto di beni e servizi;2;Acquisto di servizi;5;Utenze e canoni;4;Energia elettrica;26/04/2018
509;1;0;77,6;77,6;GLOBAL POWER SPA;622385037F;Fatt.n. V0/39975  del 03/04/2018 Fattura Energia Elettrica - illuminazione votiva - mese marzo 2018;26/04/2018;5190;0;76;1;Spese correnti;3;Acquisto di beni e servizi;2;Acquisto di servizi;5;Utenze e canoni;4;Energia elettrica;26/04/2018
510;1;0;82,11;82,11;GLOBAL POWER SPA;622385037F;Fatt.n. V0/39978  del 03/04/2018 Fattura Energia Elettrica - smaltimento rifiuti - periodo marzo 2018;26/04/2018;5810;0;80;1;Spese correnti;3;Acquisto di beni e servizi;2;Acquisto di servizi;5;Utenze e canoni;4;Energia elettrica;26/04/2018
511;1;0;1.309,11;1.309,11;GLOBAL POWER SPA;622385037F;Fatt.n. V0/39976  del 03/04/2018 Fattura Energia Elettrica - impianti sportivi - mese marzo 2018;26/04/2018;6496;1;77;1;Spese correnti;3;Acquisto di beni e servizi;2;Acquisto di servizi;5;Utenze e canoni;4;Energia elettrica;26/04/2018
512;1;0;107,37;107,37;GLOBAL POWER SPA;622385037F;Fatt.n. V0/39977  del 03/04/2018 Fattura Energia Elettrica - impianti sportivi - marzo 2018;26/04/2018;6496;2;78;1;Spese correnti;3;Acquisto di beni e servizi;2;Acquisto di servizi;5;Utenze e canoni;4;Energia elettrica;26/04/2018
513;1;0;34,04;117,99;GLOBAL POWER SPA;622385037F;Fatt.n. V0/39985  del 03/04/2018 Fattura Energia Elettrica - Via Basedat -  periodo marzo 2018;26/04/2018;7470;0;79;1;Spese correnti;3;Acquisto di beni e servizi;2;Acquisto di servizi;5;Utenze e canoni;4;Energia elettrica;26/04/2018
513;2;0;83,95;117,99;GLOBAL POWER SPA;622385037F;Fatt.n. V0/39984  del 03/04/2018 Fattura Energia Elettrica - Via Castello -  periodo marzo 2018;26/04/2018;7470;0;79;1;Spese correnti;3;Acquisto di beni e servizi;2;Acquisto di servizi;5;Utenze e canoni;4;Energia elettrica;26/04/2018
514;1;0;33,5;109;AGENZIA DELLE ENTRATE-UFF.PORTOGRUARO; ;PAGAMENTO F23 -IMP.REG.ATTI CO-MODELLO F23 (P.      10 -R.);26/04/2018;400;0;148;1;Spese correnti;3;Acquisto di beni e servizi;1;Acquisto di beni;2;Altri beni di consumo;999;Altri beni e materiali di consumo n.a.c.;26/04/2018
514;2;0;33,5;109;AGENZIA DELLE ENTRATE-UFF.PORTOGRUARO; ;UFFICIO DELLE ENTRATE-IMPOSTA DI REGISTRO MOD.F23 (P.       1 -R.);26/04/2018;400;0;148;1;Spese correnti;3;Acquisto di beni e servizi;1;Acquisto di beni;2;Altri beni di consumo;999;Altri beni e materiali di consumo n.a.c.;26/04/2018
514;3;0;42;109;AGENZIA DELLE ENTRATE-UFF.PORTOGRUARO; ;PAGAMENTO F24 CON EL.IDENT.-F24 T5X14L000466000QH (P.       5 -R.);26/04/2018;400;0;148;1;Spese correnti;3;Acquisto di beni e servizi;1;Acquisto di beni;2;Altri beni di consumo;999;Altri beni e materiali di consumo n.a.c.;26/04/2018
516;1;0;60;60;ECONOMO COMUNALE - DELLA BIANCA ADRIANA; ;Rimborso bolletta N.     8 del  23-03-18 SPESE FUNZIONAMENTO UFFICI - PREPAGATA TELEFONO CELL 3345783838 DOTAZIONE CORRA' ANDREA GRUPPO PROTEZIONE CIVILE;07/05/2018;593;0;116;1;Spese correnti;3;Acquisto di beni e servizi;2;Acquisto di servizi;5;Utenze e canoni;2;Telefonia mobile;07/05/2018
519;1;0;60;190;ECONOMO COMUNALE - DELLA BIANCA ADRIANA; ;Rimborso bolletta N.     2 del  13-02-18 FORNITURA DOLCIUMI E ALTRI ARTICOLI PER LABORATORIO ADDOBBI (DT457/2017 IMPEGNO - DT 66/2018 LIQUIDAZIONE);07/05/2018;3944;0;348;1;Spese correnti;3;Acquisto di beni e servizi;1;Acquisto di beni;2;Altri beni di consumo;999;Altri beni e materiali di consumo n.a.c.;07/05/2018
519;2;0;130;190;ECONOMO COMUNALE - DELLA BIANCA ADRIANA; ;Rimborso bolletta N.     1 del  13-02-18 FORNITURA STOFFE FILO PASSAMANERIE PER LABORATORIO ADDOBBI (DT 457/2017 IMPEGNO - DT66/2018 LIQUIDAZIONE);07/05/2018;3944;0;348;1;Spese correnti;3;Acquisto di beni e servizi;1;Acquisto di beni;2;Altri beni di consumo;999;Altri beni e materiali di consumo n.a.c.;07/05/2018
520;1;0;100;100;ECONOMO COMUNALE - DELLA BIANCA ADRIANA; ;Rimborso bolletta N.     3 del  23-02-18 SALDO Fatt.n. FATTPA 3_18  del 26/01/2018 - COLLAUDO PER REVISIONE FIAT CAMPAGNOLA;07/05/2018;7370;0;130;1;Spese correnti;3;Acquisto di beni e servizi;1;Acquisto di beni;2;Altri beni di consumo;2;Carburanti, combustibili e lubrificanti;07/05/2018
522;1;0;106,81;106,81;GLOBAL POWER SPA;622385037F;SALDO Fatt.n. V0/39982  del 03/04/2018 Fattura Energia Elettrica - Centro Culturale -  periodo marzo 2018;07/05/2018;595;0;72;1;Spese correnti;3;Acquisto di beni e servizi;2;Acquisto di servizi;5;Utenze e canoni;4;Energia elettrica;07/05/2018
524;1;0;1.591,00;1.591,00;TESORIERE COMUNALE; ;ERARIO IVA - VERSAMENTO DA LIQUIDAZIONE - 1^ TRIMESTRE 2018;08/05/2018;8200;0;151;1;Spese correnti;10;Altre spese correnti;3;Versamenti IVA a debito;1;Versamenti IVA a debito per le gestioni commerciali;1;Versamenti IVA a debito per le gestioni commerciali;08/05/2018
546;1;0;258,84;258,84;MYO SPA UNIPERSONALE;ZC920B0FD9;SALDO Fatt.n. 2040/170028798  del 24/11/2017;09/05/2018;400;0;364;1;Spese correnti;3;Acquisto di beni e servizi;1;Acquisto di beni;2;Altri beni di consumo;1;Carta, cancelleria e stampati;09/05/2018
547;1;0;5.091,87;5.091,87;NICOLETTI MAURO;ZCF1E97CB7;SALDO Fatt.n. FATTPA 3_18  del 09/03/2018;09/05/2018;9450;0;257;2;Spese in conto capitale;2;Investimenti fissi lordi e acquisto di terreni;1;Beni materiali;9;Beni immobili;2;Fabbricati ad uso commerciale;09/05/2018
548;1;0;-308,83;1.074,05;ENEL ENERGIA SPA - SOC. CON UNICO SOCIO; ;Fatt.n. 004810037564  del 06/01/2018 VIA TRIESTE N. 2/A - DICEMBRE 2017;10/05/2018;593;2;90;1;Spese correnti;3;Acquisto di beni e servizi;2;Acquisto di servizi;5;Utenze e canoni;6;Gas;10/05/2018
548;2;0;441,21;1.074,05;ENEL ENERGIA SPA - SOC. CON UNICO SOCIO; ;SALDO Fatt.n. 004810241054  del 06/02/2018 GAS - PERIODO GENNAIO 2018 - VIA TRIESTE 2;10/05/2018;593;2;90;1;Spese correnti;3;Acquisto di beni e servizi;2;Acquisto di servizi;5;Utenze e canoni;6;Gas;10/05/2018
548;3;0;468,09;1.074,05;ENEL ENERGIA SPA - SOC. CON UNICO SOCIO; ;Fatt.n. 004810568502  del 07/04/2018 FORNITURA GAS - PERIODO MARZO 2018 - V. TRIESTE N. 2;10/05/2018;593;2;90;1;Spese correnti;3;Acquisto di beni e servizi;2;Acquisto di servizi;5;Utenze e canoni;6;Gas;10/05/2018
548;4;0;473,58;1.074,05;ENEL ENERGIA SPA - SOC. CON UNICO SOCIO; ;Fatt.n. 004810419803  del 06/03/2018 FORNITURA GAS - PERIODO FEBBRAIO 2018 - V. TRIESTE N. 2;10/05/2018;593;2;90;1;Spese correnti;3;Acquisto di beni e servizi;2;Acquisto di servizi;5;Utenze e canoni;6;Gas;10/05/2018
549;1;0;78,55;269,88;ENEL ENERGIA SPA - SOC. CON UNICO SOCIO; ;SALDO Fatt.n. 004810239121  del 06/02/2018 GAS - PERIODO GENNAIO 2018 - VIA MARCONI N. 25;10/05/2018;593;5;88;1;Spese correnti;3;Acquisto di beni e servizi;2;Acquisto di servizi;5;Utenze e canoni;6;Gas;10/05/2018
549;2;0;94,93;269,88;ENEL ENERGIA SPA - SOC. CON UNICO SOCIO; ;Fatt.n. 004810544256  del 07/04/2018 FORNITURA GAS - PERIODO MARZO 2018 - V. MARCONI N. 25;10/05/2018;593;5;88;1;Spese correnti;3;Acquisto di beni e servizi;2;Acquisto di servizi;5;Utenze e canoni;6;Gas;10/05/2018
549;3;0;96,4;269,88;ENEL ENERGIA SPA - SOC. CON UNICO SOCIO; ;Fatt.n. 004810431884  del 06/03/2018 FORNITURA GAS - PERIODO FEBBRAIO 2018 - V. MARCONI N. 25;10/05/2018;593;5;88;1;Spese correnti;3;Acquisto di beni e servizi;2;Acquisto di servizi;5;Utenze e canoni;6;Gas;10/05/2018
550;1;0;130,35;414,32;ENEL ENERGIA SPA - SOC. CON UNICO SOCIO; ;SALDO Fatt.n. 004810237997  del 06/02/2018 GAS - PERIODO GENNAIO 2018 - VIA MARCONI N. 26;10/05/2018;593;6;89;1;Spese correnti;3;Acquisto di beni e servizi;2;Acquisto di servizi;5;Utenze e canoni;6;Gas;10/05/2018
550;2;0;141,26;414,32;ENEL ENERGIA SPA - SOC. CON UNICO SOCIO; ;Fatt.n. 004810557818  del 07/04/2018 FORNITURA GAS - PERIODO MARZO 2018 - V. MARCONI N. 26;10/05/2018;593;6;89;1;Spese correnti;3;Acquisto di beni e servizi;2;Acquisto di servizi;5;Utenze e canoni;6;Gas;10/05/2018
550;3;0;142,71;414,32;ENEL ENERGIA SPA - SOC. CON UNICO SOCIO; ;Fatt.n. 004810429922  del 06/03/2018 FORNITURA GAS - PERIODO FEBBRAIO 2018 - V. MARCONI N. 26;10/05/2018;593;6;89;1;Spese correnti;3;Acquisto di beni e servizi;2;Acquisto di servizi;5;Utenze e canoni;6;Gas;10/05/2018
551;1;0;630,42;1.927,39;ENEL ENERGIA SPA - SOC. CON UNICO SOCIO; ;Fatt.n. 004810431885  del 06/03/2018 FORNITURA GAS - PERIODO FEBBRAIO 2018 - CENTRO CULTURALE;10/05/2018;595;0;91;1;Spese correnti;3;Acquisto di beni e servizi;2;Acquisto di servizi;5;Utenze e canoni;6;Gas;10/05/2018
551;2;0;631,06;1.927,39;ENEL ENERGIA SPA - SOC. CON UNICO SOCIO; ;Fatt.n. 004810539053  del 07/04/2018 FORNITURA GAS - PERIODO MARZO 2018 - V. UDINE N. 35;10/05/2018;595;0;91;1;Spese correnti;3;Acquisto di beni e servizi;2;Acquisto di servizi;5;Utenze e canoni;6;Gas;10/05/2018
551;3;0;665,91;1.927,39;ENEL ENERGIA SPA - SOC. CON UNICO SOCIO; ;Fatt.n. 004810239122  del 06/02/2018 GAS - PERIODO GENNAIO 2018 - CENTRO CULTURALE VIA UDINE N. 35;10/05/2018;595;0;91;1;Spese correnti;3;Acquisto di beni e servizi;2;Acquisto di servizi;5;Utenze e canoni;6;Gas;10/05/2018
582;1;0;8,6;8,6;DIPENDENTI COMUNALI DIVERSI; ;STIPENDI MESE DI: MAGGIO 18;16/05/2018;230;0;94;1;Spese correnti;3;Acquisto di beni e servizi;2;Acquisto di servizi;2;Organizzazione eventi, pubblicita` e servizi per trasferta;1;Rimborso per viaggio e trasloco;16/05/2018
587;1;0;4.756,05;4.756,05;DIPENDENTI COMUNALI DIVERSI; ;STIPENDI MESE DI: MAGGIO 18;16/05/2018;435;0;154;1;Spese correnti;3;Acquisto di beni e servizi;2;Acquisto di servizi;99;Altri servizi;4;Altre spese per consultazioni elettorali dell'ente;16/05/2018
588;1;0;1.131,93;1.131,93;ISTITUTO PREVIDENZA CPDEL; ;VERS.CONTRIB. MESE: MAGGIO 18 A CARICO DELL`ENTE;16/05/2018;435;0;154;1;Spese correnti;3;Acquisto di beni e servizi;2;Acquisto di servizi;99;Altri servizi;4;Altre spese per consultazioni elettorali dell'ente;16/05/2018
589;1;0;404,27;404,27;REGIONE VENETO-IRAP AMMINISTR.PUBBL.VENEZIA; ;VERS. IMPOSTE MESE: MAGGIO 18 PER I.R.A.P.;16/05/2018;435;0;154;1;Spese correnti;3;Acquisto di beni e servizi;2;Acquisto di servizi;99;Altri servizi;4;Altre spese per consultazioni elettorali dell'ente;16/05/2018
618;1;0;2.327,54;2.327,54;COLLABORATORI E AMMINISTRATORI DIVERSI; ;STIPENDI MESE DI: MAGGIO 18;16/05/2018;10;0;50;1;Spese correnti;3;Acquisto di beni e servizi;2;Acquisto di servizi;1;Organi e incarichi istituzionali dell'amministrazione;1;Organi istituzionali dell'amministrazione - Indennità;16/05/2018
621;1;0;90;260;OMESSO NOMINATIVO NEL RISPETTO DELLA NORMATIVA SULLA PROTEZIONE DATI PERSONALI; ;AGEVOLAZIONI ED ESENZIONI ALLE FAMIGLIE PER IL PAGAMENTO DELLA TARI - ANNO 2017;18/05/2018;5890;0;450;1;Spese correnti;4;Trasferimenti correnti;2;Trasferimenti correnti a Famiglie;5;Altri trasferimenti a famiglie;999;Altri trasferimenti a famiglie n.a.c.;18/05/2018
621;2;0;60;260;OMESSO NOMINATIVO NEL RISPETTO DELLA NORMATIVA SULLA PROTEZIONE DATI PERSONALI; ;AGEVOLAZIONI ED ESENZIONI ALLE FAMIGLIE PER IL PAGAMENTO DELLA TARI - ANNO 2017;18/05/2018;5890;0;450;1;Spese correnti;4;Trasferimenti correnti;2;Trasferimenti correnti a Famiglie;5;Altri trasferimenti a famiglie;999;Altri trasferimenti a famiglie n.a.c.;18/05/2018
621;3;0;55;260;OMESSO NOMINATIVO NEL RISPETTO DELLA NORMATIVA SULLA PROTEZIONE DATI PERSONALI; ;AGEVOLAZIONI ED ESENZIONI ALLE FAMIGLIE PER IL PAGAMENTO DELLA TARI - ANNO 2017;18/05/2018;5890;0;450;1;Spese correnti;4;Trasferimenti correnti;2;Trasferimenti correnti a Famiglie;5;Altri trasferimenti a famiglie;999;Altri trasferimenti a famiglie n.a.c.;18/05/2018
621;4;0;55;260;OMESSO NOMINATIVO NEL RISPETTO DELLA NORMATIVA SULLA PROTEZIONE DATI PERSONALI; ;AGEVOLAZIONI ED ESENZIONI ALLE FAMIGLIE PER IL PAGAMENTO DELLA TARI - ANNO 2017;18/05/2018;5890;0;450;1;Spese correnti;4;Trasferimenti correnti;2;Trasferimenti correnti a Famiglie;5;Altri trasferimenti a famiglie;999;Altri trasferimenti a famiglie n.a.c.;18/05/2018
622;1;0;366;366;MA.E.V. 3;Z22910D296;SALDO Fatt.n. 242  del 09/03/2018;18/05/2018;6210;0;134;1;Spese correnti;3;Acquisto di beni e servizi;2;Acquisto di servizi;9;Manutenzione ordinaria e riparazioni;12;Manutenzione ordinaria e riparazioni di terreni e beni materiali non prodotti;18/05/2018
623;1;0;366;366;MA.E.V. 3;ZD422B03EC;ACCONTO Fatt.n. 360  del 30/03/2018;18/05/2018;590;0;101;1;Spese correnti;3;Acquisto di beni e servizi;2;Acquisto di servizi;9;Manutenzione ordinaria e riparazioni;12;Manutenzione ordinaria e riparazioni di terreni e beni materiali non prodotti;18/05/2018
624;1;0;192,76;192,76;MA.E.V. 3;ZD422B03EC;SALDO Fatt.n. 360  del 30/03/2018;18/05/2018;590;0;141;1;Spese correnti;3;Acquisto di beni e servizi;2;Acquisto di servizi;9;Manutenzione ordinaria e riparazioni;12;Manutenzione ordinaria e riparazioni di terreni e beni materiali non prodotti;18/05/2018
625;1;0;196,97;196,97;DANTE NOSELLA S.P.A.;ZCB21B226F;SALDO Fatt.n. 3  del 13/01/2018;18/05/2018;7370;0;131;1;Spese correnti;3;Acquisto di beni e servizi;1;Acquisto di beni;2;Altri beni di consumo;999;Altri beni e materiali di consumo n.a.c.;18/05/2018
626;1;0;390,4;390,4;OFFICINA NADALIN SRL;Z7F21B2385;SALDO Fatt.n. 1/PA  del 09/02/2018 Determina n. 16 del 12/01/2018;18/05/2018;3181;0;132;1;Spese correnti;3;Acquisto di beni e servizi;2;Acquisto di servizi;9;Manutenzione ordinaria e riparazioni;8;Manutenzione ordinaria e riparazioni di beni immobili;18/05/2018
627;1;0;427,68;427,68;AZIENDA U.L.S.S. N. 4 VENETO ORIENTALE;ZD01E7D762;SALDO Fatt.n. VP  201800000003  del 22/01/2018 DETERMINA 193/2017: CAMPAGNA DI DERATTIZZAZIONE ANNO 2017 CIG ZD01E7D762;18/05/2018;5900;0;227;1;Spese correnti;4;Trasferimenti correnti;1;Trasferimenti correnti a Amministrazioni Pubbliche;2;Trasferimenti correnti a Amministrazioni Locali;999;Trasferimenti correnti a altre Amministrazioni Locali n.a.c.;18/05/2018
628;1;0;903,78;1.807,56;PIANEZZOLA CLAUDIO;Z891E8FFF5;SALDO Fatt.n. 04/01  del 28/02/2018;18/05/2018;7460;1;211;1;Spese correnti;3;Acquisto di beni e servizi;2;Acquisto di servizi;15;Contratti di servizio pubblico;15;Contratti di servizio per l'illuminazione pubblica;18/05/2018
628;2;0;903,78;1.807,56;PIANEZZOLA CLAUDIO;Z891E8FFF5;SALDO Fatt.n. 07/01  del 30/03/2018;18/05/2018;7460;1;211;1;Spese correnti;3;Acquisto di beni e servizi;2;Acquisto di servizi;15;Contratti di servizio pubblico;15;Contratti di servizio per l'illuminazione pubblica;18/05/2018
629;1;0;6.105,00;6.105,00;LORIS VIAGGI DI FONTANEL LORIS;6784409f67;SALDO Fatt.n. PA0102018  del 30/04/2018;18/05/2018;3420;0;333;1;Spese correnti;3;Acquisto di beni e servizi;2;Acquisto di servizi;15;Contratti di servizio pubblico;2;Contratti di servizio di trasporto scolastico;18/05/2018
630;1;0;5.343,60;5.343,60;SE.M.PRE S.R.L.;Z9C215165A;ACCONTO Fatt.n. 7/50  del 31/01/2018;21/05/2018;7371;0;403;1;Spese correnti;3;Acquisto di beni e servizi;2;Acquisto di servizi;9;Manutenzione ordinaria e riparazioni;8;Manutenzione ordinaria e riparazioni di beni immobili;21/05/2018
631;1;0;600;600;SANTIN RINO DI SANTIN DARIO;Z61224C819;SALDO Fatt.n. 36PA  del 28/02/2018 FORNITURA MATERIALE E RICAMBI ATTREZZATURA PER IL VERDE PUBBLICO;21/05/2018;6200;0;136;1;Spese correnti;3;Acquisto di beni e servizi;1;Acquisto di beni;2;Altri beni di consumo;999;Altri beni e materiali di consumo n.a.c.;21/05/2018
632;1;0;101,26;101,26;TIME-NET SRL;CIGZ1A1EDF;SALDO Fatt.n. 151/PA  del 09/03/2018;21/05/2018;595;0;455;1;Spese correnti;3;Acquisto di beni e servizi;2;Acquisto di servizi;5;Utenze e canoni;999;Utenze e canoni per altri servizi n.a.c.;21/05/2018
633;1;0;122;490,56;TIME-NET SRL;CIGZ831A60;SALDO Fatt.n. 150/PA  del 09/03/2018;21/05/2018;3186;1;454;1;Spese correnti;3;Acquisto di beni e servizi;2;Acquisto di servizi;5;Utenze e canoni;999;Utenze e canoni per altri servizi n.a.c.;21/05/2018
633;2;0;124,56;490,56;TIME-NET SRL;CIGZ831A60;ACCONTO Fatt.n. 168/PA  del 09/03/2018;21/05/2018;3186;1;454;1;Spese correnti;3;Acquisto di beni e servizi;2;Acquisto di servizi;5;Utenze e canoni;999;Utenze e canoni per altri servizi n.a.c.;21/05/2018
633;3;0;244;490,56;TIME-NET SRL;CIGZ831A60;SALDO Fatt.n. 152/PA  del 09/03/2018;21/05/2018;3186;1;454;1;Spese correnti;3;Acquisto di beni e servizi;2;Acquisto di servizi;5;Utenze e canoni;999;Utenze e canoni per altri servizi n.a.c.;21/05/2018
634;1;0;64,38;280,3;TIME-NET SRL;CIGZ831A60;SALDO Fatt.n. 169/PA  del 09/03/2018;21/05/2018;3186;1;454;1;Spese correnti;3;Acquisto di beni e servizi;2;Acquisto di servizi;5;Utenze e canoni;999;Utenze e canoni per altri servizi n.a.c.;21/05/2018
634;2;0;92,6;280,3;TIME-NET SRL;CIGZ831A60;SALDO Fatt.n. 168/PA  del 09/03/2018;21/05/2018;3186;1;454;1;Spese correnti;3;Acquisto di beni e servizi;2;Acquisto di servizi;5;Utenze e canoni;999;Utenze e canoni per altri servizi n.a.c.;21/05/2018
634;3;0;123,32;280,3;TIME-NET SRL;CIGZ831A60;SALDO Fatt.n. 170/PA  del 09/03/2018;21/05/2018;3186;1;454;1;Spese correnti;3;Acquisto di beni e servizi;2;Acquisto di servizi;5;Utenze e canoni;999;Utenze e canoni per altri servizi n.a.c.;21/05/2018
635;1;0;1.350,00;1.350,00;OMESSO NOMINATIVO NEL RISPETTO DELLA NORMATIVA SULLA PROTEZIONE DATI PERSONALI; ;AFFIDO EXTRAFAMILIARE -  LIQUIDAZIONE I TRIMESTRE 2018  CONTRUIBUTO ECONOMICO A FAMIGLIA AFFIDATARIA COME DA LINEE GUIDA SULL'AFFIDO 2008.;21/05/2018;6145;0;137;1;Spese correnti;4;Trasferimenti correnti;2;Trasferimenti correnti a Famiglie;5;Altri trasferimenti a famiglie;999;Altri trasferimenti a famiglie n.a.c.;21/05/2018
636;1;0;3.100,00;3.100,00;COMUNE DI PORTOGRUARO; ;CONVENZIONE POLIZIA ANNO 2016;30/05/2018;2105;0;402;1;Spese correnti;4;Trasferimenti correnti;1;Trasferimenti correnti a Amministrazioni Pubbliche;2;Trasferimenti correnti a Amministrazioni Locali;3;Trasferimenti correnti a Comuni;30/05/2018
637;1;0;1.965,00;1.965,00;COMUNE DI PORTOGRUARO; ;COMUNE DI PORTOGRUARO - IMPEGNO DI SPESA PER CONVENZIONE POLIZIA MUNICIPALE SALDO 2016;30/05/2018;2105;0;424;1;Spese correnti;4;Trasferimenti correnti;1;Trasferimenti correnti a Amministrazioni Pubbliche;2;Trasferimenti correnti a Amministrazioni Locali;3;Trasferimenti correnti a Comuni;30/05/2018
638;1;0;9.035,00;9.035,00;COMUNE DI PORTOGRUARO; ;COMUNE DI PORTOGRUARO - LIQUIDAZIONE RENDICONTO 2017 CONVENZIONE POLIZIA MUNICIPALE DEL PORTOGRUARESE;30/05/2018;2105;0;457;1;Spese correnti;4;Trasferimenti correnti;1;Trasferimenti correnti a Amministrazioni Pubbliche;2;Trasferimenti correnti a Amministrazioni Locali;3;Trasferimenti correnti a Comuni;30/05/2018
639;1;0;3,63;3,63;COMUNE DI PORTOGRUARO; ;COMUNE DI PORTOGRUARO - LIQUIDAZIONE RENDICONTO 2017 CONVENZIONE POLIZIA MUNICIPALE DEL PORTOGRUARESE;30/05/2018;2105;0;166;1;Spese correnti;4;Trasferimenti correnti;1;Trasferimenti correnti a Amministrazioni Pubbliche;2;Trasferimenti correnti a Amministrazioni Locali;3;Trasferimenti correnti a Comuni;30/05/2018
786;1;0;2.327,54;2.327,54;COLLABORATORI E AMMINISTRATORI DIVERSI; ;STIPENDI MESE DI: GIUGNO 18;07/06/2018;10;0;50;1;Spese correnti;3;Acquisto di beni e servizi;2;Acquisto di servizi;1;Organi e incarichi istituzionali dell'amministrazione;1;Organi istituzionali dell'amministrazione - Indennità;07/06/2018
789;1;0;80;80;COMUNE DI CAVALLINO TREPORTI; ;COMUNE DI CAVALLINO TREPORTI - PARTECIPAZIONE DIPENDENTI  AL CORSO IN MATERIA DI PERSONALE DEL GIORNO 12/06/2018;08/06/2018;370;0;268;1;Spese correnti;3;Acquisto di beni e servizi;2;Acquisto di servizi;4;Acquisto di servizi per formazione e addestramento del personale dell'ente;4;Acquisto di servizi per formazione obbligatoria;08/06/2018
790;1;0;6.588,00;6.588,00;ACCATRE S.R.L.;Z261CA1371;SALDO Fatt.n. 1/180109  del 12/01/2018 SERVICE DIPENDENTI - GESTIONE ECONOMICA DEL PERSONALE;08/06/2018;660;0;228;1;Spese correnti;3;Acquisto di beni e servizi;2;Acquisto di servizi;19;Servizi informatici e di telecomunicazioni;5;Servizi per i sistemi e relativa manutenzione;08/06/2018
791;1;0;3.050,00;3.050,00;ACCATRE S.R.L.;Z6C1F9F580;SALDO Fatt.n. 1/171260  del 13/12/2017 RICLASSIFICAZIONE INVENTARIO;08/06/2018;660;0;272;1;Spese correnti;3;Acquisto di beni e servizi;2;Acquisto di servizi;19;Servizi informatici e di telecomunicazioni;2;Assistenza all'utente e formazione;08/06/2018
792;1;0;854;854;ACCATRE S.R.L.;ZA0213B57B;SALDO Fatt.n. 1/171386  del 21/12/2017 CONSERVAZIONE DOCUMENTI;08/06/2018;660;0;391;1;Spese correnti;3;Acquisto di beni e servizi;2;Acquisto di servizi;19;Servizi informatici e di telecomunicazioni;1;Gestione e manutenzione applicazioni;08/06/2018
793;1;0;8.649,80;8.649,80;HALLEY VENETO S.R.L.;Z6C1CA12B3;SALDO Fatt.n. 1/180079  del 26/01/2018 CANONE DI MANUTENZIONE SOFTWARE;08/06/2018;660;0;229;1;Spese correnti;3;Acquisto di beni e servizi;2;Acquisto di servizi;19;Servizi informatici e di telecomunicazioni;5;Servizi per i sistemi e relativa manutenzione;08/06/2018
794;1;0;3.172,00;3.172,00;HALLEY VENETO S.R.L.;z261ca1371;SALDO Fatt.n. 1/180080  del 26/01/2018 CANONE ASSISTENZA IMMEDIA ANNO 2018;08/06/2018;660;0;228;1;Spese correnti;3;Acquisto di beni e servizi;2;Acquisto di servizi;19;Servizi informatici e di telecomunicazioni;5;Servizi per i sistemi e relativa manutenzione;08/06/2018
795;1;0;53,68;333,67;MYO SPA UNIPERSONALE;ZF921B6B9F;SALDO Fatt.n. 2040/180006361  del 28/02/2018;08/06/2018;435;0;255;1;Spese correnti;3;Acquisto di beni e servizi;2;Acquisto di servizi;99;Altri servizi;4;Altre spese per consultazioni elettorali dell'ente;08/06/2018
795;2;0;183;333,67;MYO SPA UNIPERSONALE;ZF921B6B9F;SALDO Fatt.n. 2040/180002922  del 31/01/2018;08/06/2018;435;0;255;1;Spese correnti;3;Acquisto di beni e servizi;2;Acquisto di servizi;99;Altri servizi;4;Altre spese per consultazioni elettorali dell'ente;08/06/2018
795;3;0;9,15;333,67;MYO SPA UNIPERSONALE;ZF921B6B9F;SALDO Fatt.n. 2040/180006362  del 28/02/2018;08/06/2018;435;0;255;1;Spese correnti;3;Acquisto di beni e servizi;2;Acquisto di servizi;99;Altri servizi;4;Altre spese per consultazioni elettorali dell'ente;08/06/2018
795;4;0;87,84;333,67;MYO SPA UNIPERSONALE;ZF921B6B9F;SALDO Fatt.n. 2040/180003996  del 09/02/2018;08/06/2018;435;0;255;1;Spese correnti;3;Acquisto di beni e servizi;2;Acquisto di servizi;99;Altri servizi;4;Altre spese per consultazioni elettorali dell'ente;08/06/2018
797;1;0;28,38;28,38;TIME-NET SRL;CIGZ831A60;SALDO Fatt.n. 178/PA  del 22/03/2018;21/06/2018;3186;1;259;1;Spese correnti;3;Acquisto di beni e servizi;2;Acquisto di servizi;5;Utenze e canoni;2;Telefonia mobile;21/06/2018
798;1;0;101,26;223,26;TIME-NET SRL;CIGZ1A1EDF;SALDO Fatt.n. 223/PA  del 11/04/2018 PERIODO 01/05/2018 AL 30/06/2018;21/06/2018;595;0;455;1;Spese correnti;3;Acquisto di beni e servizi;2;Acquisto di servizi;5;Utenze e canoni;999;Utenze e canoni per altri servizi n.a.c.;21/06/2018
798;2;0;122;223,26;TIME-NET SRL;CIGZ831A60;SALDO Fatt.n. 224/PA  del 11/04/2018 PERIODO 01/05/18 - 30/06/2018;21/06/2018;595;0;455;1;Spese correnti;3;Acquisto di beni e servizi;2;Acquisto di servizi;5;Utenze e canoni;999;Utenze e canoni per altri servizi n.a.c.;21/06/2018
799;1;0;18,43;18,43;TIME-NET SRL;CIGZ831A60;SALDO Fatt.n. 254/PA  del 09/05/2018;21/06/2018;595;0;455;1;Spese correnti;3;Acquisto di beni e servizi;2;Acquisto di servizi;5;Utenze e canoni;999;Utenze e canoni per altri servizi n.a.c.;21/06/2018
800;1;0;42,7;42,7;INASSET SRL;ZF71E77EDE;SALDO Fatt.n. 12/18.0062  del 05/03/2018;21/06/2018;593;0;83;1;Spese correnti;3;Acquisto di beni e servizi;2;Acquisto di servizi;5;Utenze e canoni;999;Utenze e canoni per altri servizi n.a.c.;21/06/2018
801;1;0;508,08;508,08;GLOBAL POWER SPA;622385037F;Fatt.n. V0/65425 del 01/06/2018 Fattura Energia Elettrica - MUNICIPIO - PERIODO 05/2018;25/06/2018;593;1;67;1;Spese correnti;3;Acquisto di beni e servizi;2;Acquisto di servizi;5;Utenze e canoni;4;Energia elettrica;25/06/2018
802;1;0;69,06;69,06;GLOBAL POWER SPA;622385037F;Fatt.n. V0/65431 del 01/06/2018 Fattura Energia Elettrica -EX DISTRETTO - PERIODO 05/2018;25/06/2018;593;2;68;1;Spese correnti;3;Acquisto di beni e servizi;2;Acquisto di servizi;5;Utenze e canoni;4;Energia elettrica;25/06/2018
803;1;0;70,1;70,1;GLOBAL POWER SPA;622385037F;Fatt.n. V0/65435 del 01/06/2018 Fattura Energia Elettrica - LEONARDO DA VINCI - PERIODO 05/2018;25/06/2018;593;3;69;1;Spese correnti;3;Acquisto di beni e servizi;2;Acquisto di servizi;5;Utenze e canoni;4;Energia elettrica;25/06/2018
804;1;0;32,24;114,94;GLOBAL POWER SPA;622385037F;Fatt.n. V0/65439 del 01/06/2018 Fattura Energia Elettrica - VIA MARCONI N. 24 - PERIODO 05/2018;25/06/2018;593;4;71;1;Spese correnti;3;Acquisto di beni e servizi;2;Acquisto di servizi;5;Utenze e canoni;4;Energia elettrica;25/06/2018
804;2;0;82,7;114,94;GLOBAL POWER SPA;622385037F;Fatt.n. V0/65438 del 01/06/2018 Fattura Energia Elettrica - VIA MARCONI N. 24 - PERIODO 05/2018;25/06/2018;593;4;71;1;Spese correnti;3;Acquisto di beni e servizi;2;Acquisto di servizi;5;Utenze e canoni;4;Energia elettrica;25/06/2018
805;1;0;45,2;45,2;GLOBAL POWER SPA;622385037F;Fatt.n. V0/65426 del 01/06/2018 Fattura Energia Elettrica - VIA MARCONI 26 - PERIODO 05/2018;25/06/2018;593;6;70;1;Spese correnti;3;Acquisto di beni e servizi;2;Acquisto di servizi;5;Utenze e canoni;4;Energia elettrica;25/06/2018
806;1;0;40,21;40,21;GLOBAL POWER SPA;622385037F;Fatt.n. V0/65434 del 01/06/2018 Fattura Energia Elettrica - CENTRO CULTURALE - PERIODO 05/2018;25/06/2018;595;0;72;1;Spese correnti;3;Acquisto di beni e servizi;2;Acquisto di servizi;5;Utenze e canoni;4;Energia elettrica;25/06/2018
807;1;0;173,88;173,88;GLOBAL POWER SPA;622385037F;Fatt.n. V0/65433 del 01/06/2018 Fattura Energia Elettrica - SCUOLA MATERNA - PERIODO 05/2018;25/06/2018;2803;0;74;1;Spese correnti;3;Acquisto di beni e servizi;2;Acquisto di servizi;5;Utenze e canoni;4;Energia elettrica;25/06/2018
808;1;0;274,15;274,15;GLOBAL POWER SPA;622385037F;Fatt.n. V0/65432 del 01/06/2018 Fattura Energia Elettrica - SCUOLA ELEMENTARE - PERIODO 05/2018;25/06/2018;2975;1;73;1;Spese correnti;3;Acquisto di beni e servizi;2;Acquisto di servizi;5;Utenze e canoni;4;Energia elettrica;25/06/2018
809;1;0;278,46;278,46;GLOBAL POWER SPA;622385037F;Fatt.n. V0/65433 del 01/06/2018 Fattura Energia Elettrica - SCUOLA MATERNA - PERIODO 05/2018;25/06/2018;3186;1;75;1;Spese correnti;3;Acquisto di beni e servizi;2;Acquisto di servizi;5;Utenze e canoni;4;Energia elettrica;25/06/2018
810;1;0;30,85;30,85;GLOBAL POWER SPA;622385037F;Fatt.n. V0/65427 del 01/06/2018 Fattura Energia Elettrica - ILLUMINAZIONE VOTIVA - PERIODO 05/2018;25/06/2018;5190;0;76;1;Spese correnti;3;Acquisto di beni e servizi;2;Acquisto di servizi;5;Utenze e canoni;4;Energia elettrica;25/06/2018
811;1;0;80,4;80,4;GLOBAL POWER SPA;622385037F;Fatt.n. V0/65430 del 01/06/2018 Fattura Energia Elettrica - IMPIANTO SOLLEVAMENTO -  PERIODO 05/2018;25/06/2018;5810;0;80;1;Spese correnti;3;Acquisto di beni e servizi;2;Acquisto di servizi;5;Utenze e canoni;4;Energia elettrica;25/06/2018
812;1;0;699,27;699,27;GLOBAL POWER SPA;622385037F;Fatt.n. V0/65428 del 01/06/2018 Fattura Energia Elettrica - PALAZZETTO SPORTI - PERIODO 05/2018;25/06/2018;6496;1;77;1;Spese correnti;3;Acquisto di beni e servizi;2;Acquisto di servizi;5;Utenze e canoni;4;Energia elettrica;25/06/2018
813;1;0;204,64;204,64;GLOBAL POWER SPA;622385037F;Fatt.n. V0/65429 del 01/06/2018 Fattura Energia Elettrica - CAMPI TENNIS-BOCCE -PERIODO 05/2018;25/06/2018;6496;2;78;1;Spese correnti;3;Acquisto di beni e servizi;2;Acquisto di servizi;5;Utenze e canoni;4;Energia elettrica;25/06/2018
814;1;0;32,04;3.998,30;GLOBAL POWER SPA;622385037F;Fatt.n. V0/65437 del 01/06/2018 Fattura Energia Elettrica - ILLUMINAZIONE PUBBLICA VIA BASEDAT-  PERIODO 05/2018;25/06/2018;7470;0;79;1;Spese correnti;3;Acquisto di beni e servizi;2;Acquisto di servizi;5;Utenze e canoni;4;Energia elettrica;25/06/2018
814;2;0;81,54;3.998,30;GLOBAL POWER SPA;622385037F;Fatt.n. V0/65436 del 01/06/2018 Fattura Energia Elettrica - ILLUMINAZIONE PUBBLICA VIA CASTELLO -  PERIODO 05/2018;25/06/2018;7470;0;79;1;Spese correnti;3;Acquisto di beni e servizi;2;Acquisto di servizi;5;Utenze e canoni;4;Energia elettrica;25/06/2018
814;3;0;83,77;3.998,30;GLOBAL POWER SPA;622385037F;Fatt.n. V0/27103 del 01/03/2018 Fattura Energia Elettrica - mese 02/2018 - illuminazione pubblica Via Castello;25/06/2018;7470;0;79;1;Spese correnti;3;Acquisto di beni e servizi;2;Acquisto di servizi;5;Utenze e canoni;4;Energia elettrica;25/06/2018
814;4;0;248,16;3.998,30;GLOBAL POWER SPA;622385037F;Fatt.n. V0/65440 del 01/06/2018 Fattura Energia Elettrica - ILLUMINAZIONE PUBBLICA - VIA VENEZIA -  PERIODO 05/2018;25/06/2018;7470;0;79;1;Spese correnti;3;Acquisto di beni e servizi;2;Acquisto di servizi;5;Utenze e canoni;4;Energia elettrica;25/06/2018
814;5;0;3.552,79;3.998,30;GLOBAL POWER SPA;622385037F;Fatt.n. V0/65441 del 01/06/2018 Fattura Energia Elettrica - ILLUMINAZIONE PUBBLICA -  PERIODO 05/2018;25/06/2018;7470;0;79;1;Spese correnti;3;Acquisto di beni e servizi;2;Acquisto di servizi;5;Utenze e canoni;4;Energia elettrica;25/06/2018
815;1;0;322,08;322,08;BONETTI STEFANO;Z2921FD106;SALDO Fatt.n. 1/PA  del 28/02/2018 Determina n. 42 del  01/02/2018;25/06/2018;6491;0;258;1;Spese correnti;3;Acquisto di beni e servizi;2;Acquisto di servizi;9;Manutenzione ordinaria e riparazioni;5;Manutenzione ordinaria e riparazioni di attrezzature;25/06/2018
816;1;0;1.793,40;1.793,40;PIANEZZOLA CLAUDIO;Z972333E32;SALDO Fatt.n. 11/01  del 15/05/2018;25/06/2018;590;0;236;1;Spese correnti;3;Acquisto di beni e servizi;2;Acquisto di servizi;9;Manutenzione ordinaria e riparazioni;8;Manutenzione ordinaria e riparazioni di beni immobili;25/06/2018
817;1;0;329,4;329,4;PIANEZZOLA CLAUDIO;Z8923682AF;ACCONTO Fatt.n. 10/01  del 09/05/2018;25/06/2018;2801;0;227;1;Spese correnti;3;Acquisto di beni e servizi;2;Acquisto di servizi;9;Manutenzione ordinaria e riparazioni;8;Manutenzione ordinaria e riparazioni di beni immobili;25/06/2018
818;1;0;280,6;280,6;PIANEZZOLA CLAUDIO;Z8923682AF;SALDO Fatt.n. 10/01  del 09/05/2018;25/06/2018;3181;0;228;1;Spese correnti;3;Acquisto di beni e servizi;2;Acquisto di servizi;9;Manutenzione ordinaria e riparazioni;8;Manutenzione ordinaria e riparazioni di beni immobili;25/06/2018
819;1;0;443,27;443,27;IDROTERMICA DI GIBBONI EDIO;Z0F23627F4;ACCONTO Fatt.n. 000002-2018-PA  del 07/05/2018;25/06/2018;2801;0;233;1;Spese correnti;3;Acquisto di beni e servizi;2;Acquisto di servizi;9;Manutenzione ordinaria e riparazioni;8;Manutenzione ordinaria e riparazioni di beni immobili;25/06/2018
820;1;0;443,27;443,27;IDROTERMICA DI GIBBONI EDIO;Z0F23627F4;ACCONTO Fatt.n. 000002-2018-PA  del 07/05/2018;25/06/2018;3181;0;230;1;Spese correnti;3;Acquisto di beni e servizi;2;Acquisto di servizi;9;Manutenzione ordinaria e riparazioni;8;Manutenzione ordinaria e riparazioni di beni immobili;25/06/2018
821;1;0;443,26;443,26;IDROTERMICA DI GIBBONI EDIO;Z0F23627F4;SALDO Fatt.n. 000002-2018-PA  del 07/05/2018;25/06/2018;2971;0;232;1;Spese correnti;3;Acquisto di beni e servizi;2;Acquisto di servizi;9;Manutenzione ordinaria e riparazioni;8;Manutenzione ordinaria e riparazioni di beni immobili;25/06/2018
822;1;0;164,7;164,7;OFFICINA NADALIN SRL;ZD323C7F7E;SALDO Fatt.n. 2/PA  del 31/05/2018 dETERMINA N. 195 DEL 28/05/2018;25/06/2018;6491;0;170;1;Spese correnti;3;Acquisto di beni e servizi;2;Acquisto di servizi;9;Manutenzione ordinaria e riparazioni;8;Manutenzione ordinaria e riparazioni di beni immobili;25/06/2018
823;1;0;276,94;276,94;F.LLI BERTOLI ELETTROIMPIANTI S.N.C. DI BERTOLI G. & M.;ZC723C5700;SALDO Fatt.n. 000004/E  del 31/05/2018;25/06/2018;740;0;172;1;Spese correnti;3;Acquisto di beni e servizi;1;Acquisto di beni;2;Altri beni di consumo;4;Vestiario;25/06/2018
824;1;0;450,74;450,74;ATIS S.R.L.;Z802375600;SALDO Fatt.n. 142/V5  del 31/05/2018 Fattura   - Rapportino intervento n.ro 92054 del 21/05/2018 Presso: Mensa scolastica     PA - (CINTO CAOMAGGIORE);25/06/2018;2971;0;175;1;Spese correnti;3;Acquisto di beni e servizi;2;Acquisto di servizi;9;Manutenzione ordinaria e riparazioni;4;Manutenzione ordinaria e riparazioni di impianti e macchinari;25/06/2018
825;1;0;-5.429,00;4.886,10;Studio Cavaggioni s.c.a.r.l.;ZF51E27408;SALDO Fatt.n. 347/FE/2017  del 04/10/2017;25/06/2018;770;0;139;1;Spese correnti;3;Acquisto di beni e servizi;2;Acquisto di servizi;11;Prestazioni professionali e specialistiche;999;Altre prestazioni professionali e specialistiche n.a.c.;25/06/2018
825;2;0;1.085,80;4.886,10;Studio Cavaggioni s.c.a.r.l.;ZF51E27408;SALDO Fatt.n. 256/FE/2017  del 23/08/2017 1236 - COMUNE DI CINTO CAOMAGGIORE/ - RICOGNIZIONE CESPITI - DET.155-06/04/2017;25/06/2018;770;0;139;1;Spese correnti;3;Acquisto di beni e servizi;2;Acquisto di servizi;11;Prestazioni professionali e specialistiche;999;Altre prestazioni professionali e specialistiche n.a.c.;25/06/2018
825;3;0;4.343,20;4.886,10;Studio Cavaggioni s.c.a.r.l.;ZF51E27408;SALDO Fatt.n. 190/FE/2017  del 29/06/2017 1236 - COMUNE DI CINTO CAOMAGGIORE/ - RICOGNIZIONE CESPITI - DET.155-06/04/2017;25/06/2018;770;0;139;1;Spese correnti;3;Acquisto di beni e servizi;2;Acquisto di servizi;11;Prestazioni professionali e specialistiche;999;Altre prestazioni professionali e specialistiche n.a.c.;25/06/2018
825;4;0;4.886,10;4.886,10;Studio Cavaggioni s.c.a.r.l.;ZF51E27408;SALDO Fatt.n. 348/FE/2017  del 04/10/2017 1236 - COMUNE DI CINTO CAOMAGGIORE/ - RICOGNIZIONE CESPITI - DET.155-06/04/2017;25/06/2018;770;0;139;1;Spese correnti;3;Acquisto di beni e servizi;2;Acquisto di servizi;11;Prestazioni professionali e specialistiche;999;Altre prestazioni professionali e specialistiche n.a.c.;25/06/2018
826;1;0;98,04;98,04;COMUNE DI MEOLO; ;VERSAMENTO QUOTE DI COFINANZIAMENTO PROGETTI ANNO 2017 L.R.16/93, IN ESECUZIONE ALLA CONSILIARE 37/2017.;25/06/2018;571;0;398;1;Spese correnti;4;Trasferimenti correnti;1;Trasferimenti correnti a Amministrazioni Pubbliche;2;Trasferimenti correnti a Amministrazioni Locali;3;Trasferimenti correnti a Comuni;25/06/2018
827;1;0;261,44;261,44;COMUNE DI SAN DONA' DI PIAVE; ;VERSAMENTO QUOTE DI COFINANZIAMENTO PROGETTI ANNO 2017 L.R.16/93, IN ESECUZIONE ALLA CONSILIARE 37/2017.;25/06/2018;571;0;399;1;Spese correnti;4;Trasferimenti correnti;1;Trasferimenti correnti a Amministrazioni Pubbliche;2;Trasferimenti correnti a Amministrazioni Locali;3;Trasferimenti correnti a Comuni;25/06/2018
828;1;0;294,12;294,12;COMUNE DI PORTOGRUARO; ;VERSAMENTO QUOTE DI COFINANZIAMENTO PROGETTI ANNO 2017 L.R.16/93, IN ESECUZIONE ALLA CONSILIARE 37/2017.;25/06/2018;571;0;400;1;Spese correnti;4;Trasferimenti correnti;1;Trasferimenti correnti a Amministrazioni Pubbliche;2;Trasferimenti correnti a Amministrazioni Locali;3;Trasferimenti correnti a Comuni;25/06/2018
829;1;0;41,35;41,35;C.I.R. FOOD S.C.;6368287CAB;SALDO Fatt.n. 5200036142  del 31/12/2017 Destinatario:0000510656,DIPENDENTI COM. CINTO CAO MAGGIORE,---- .,CINTO CAO MAGGIORE,30020,VE;25/06/2018;775;0;103;1;Spese correnti;3;Acquisto di beni e servizi;2;Acquisto di servizi;14;Servizi di ristorazione;999;Altri servizi di ristorazione;25/06/2018
830;1;0;127,49;127,49;C.I.R. FOOD S.C.;6368287CAB;ACCONTO Fatt.n. 5200036141  del 31/12/2017 Destinatario:0000522111,SC.PRIMARIA G.PASCOLI-BAMBINICOMUNE DI CAOMAGGIORE,VIA TORINO 2,CINTO CAO MAGGIORE,30020,VE;25/06/2018;3000;0;334;1;Spese correnti;3;Acquisto di beni e servizi;2;Acquisto di servizi;15;Contratti di servizio pubblico;6;Contratti di servizio per le mense scolastiche;25/06/2018
831;1;0;392,78;392,78;C.I.R. FOOD S.C.;6368287CAB;SALDO Fatt.n. 5200036141  del 31/12/2017 Destinatario:0000522111,SC.PRIMARIA G.PASCOLI-BAMBINICOMUNE DI CAOMAGGIORE,VIA TORINO 2,CINTO CAO MAGGIORE,30020,VE;25/06/2018;3000;0;102;1;Spese correnti;3;Acquisto di beni e servizi;2;Acquisto di servizi;15;Contratti di servizio pubblico;6;Contratti di servizio per le mense scolastiche;25/06/2018
832;1;0;27,56;27,56;C.I.R. FOOD S.C.;Z8922B9D40;SALDO Fatt.n. 5200006948  del 28/02/2018 Destinatario:0000510656,DIPENDENTI COM. CINTO CAO MAGGIORE,---- .,CINTO CAO MAGGIORE,30020,VE;25/06/2018;775;0;103;1;Spese correnti;3;Acquisto di beni e servizi;2;Acquisto di servizi;14;Servizi di ristorazione;999;Altri servizi di ristorazione;25/06/2018
833;1;0;499,61;499,61;C.I.R. FOOD S.C.;Z8922B9D40;SALDO Fatt.n. 5200006946  del 28/02/2018 Destinatario:0000522112,SC. INFANZIA DI CAOMAGGIORE-BAMBINICOMUNE DI CAOMAGGIORE,VIA TORINO 2,CINTO  CAO MAGGIORE,30020,VE;25/06/2018;3000;0;102;1;Spese correnti;3;Acquisto di beni e servizi;2;Acquisto di servizi;15;Contratti di servizio pubblico;6;Contratti di servizio per le mense scolastiche;25/06/2018
834;1;0;585,74;585,74;C.I.R. FOOD S.C.;Z8922B9D40;SALDO Fatt.n. 5200006947  del 28/02/2018 Destinatario:0000522111,SC.PRIMARIA G.PASCOLI-BAMBINICOMUNE DI CAOMAGGIORE,VIA TORINO 2,CINTO CAO MAGGIORE,30020,VE;25/06/2018;3000;0;102;1;Spese correnti;3;Acquisto di beni e servizi;2;Acquisto di servizi;15;Contratti di servizio pubblico;6;Contratti di servizio per le mense scolastiche;25/06/2018
835;1;0;31,01;31,01;C.I.R. FOOD S.C.;Z8922B9D40;SALDO Fatt.n. 5200009852  del 31/03/2018 Destinatario:0000510656,DIPENDENTI COM. CINTO CAO MAGGIORE,---- .,CINTO CAO MAGGIORE,30020,VE;25/06/2018;775;0;103;1;Spese correnti;3;Acquisto di beni e servizi;2;Acquisto di servizi;14;Servizi di ristorazione;999;Altri servizi di ristorazione;25/06/2018
836;1;0;602,97;1.257,62;C.I.R. FOOD S.C.;Z8922B9D40;SALDO Fatt.n. 5200009850  del 31/03/2018 Destinatario:0000522112,SC. INFANZIA DI CAOMAGGIORE-BAMBINICOMUNE DI CAOMAGGIORE,VIA TORINO 2,CINTO  CAO MAGGIORE,30020,VE;25/06/2018;3000;0;102;1;Spese correnti;3;Acquisto di beni e servizi;2;Acquisto di servizi;15;Contratti di servizio pubblico;6;Contratti di servizio per le mense scolastiche;25/06/2018
836;2;0;654,65;1.257,62;C.I.R. FOOD S.C.;Z8922B9D40;SALDO Fatt.n. 5200009851  del 31/03/2018 Destinatario:0000522111,SC.PRIMARIA G.PASCOLI-BAMBINICOMUNE DI CAOMAGGIORE,VIA TORINO 2,CINTO CAO MAGGIORE,30020,VE;25/06/2018;3000;0;102;1;Spese correnti;3;Acquisto di beni e servizi;2;Acquisto di servizi;15;Contratti di servizio pubblico;6;Contratti di servizio per le mense scolastiche;25/06/2018
837;1;0;427;427;3 TECNICA DI ANDREA COLONNELLO S.A.S.;ZCF235D270;SALDO Fatt.n. 102  del 30/04/2018 CIG: ZCF235D270;25/06/2018;594;0;239;1;Spese correnti;3;Acquisto di beni e servizi;2;Acquisto di servizi;9;Manutenzione ordinaria e riparazioni;4;Manutenzione ordinaria e riparazioni di impianti e macchinari;25/06/2018
838;1;0;79,3;79,3;CIMA-ESA  SRL;Z8E1E433CC;ACCONTO Fatt.n. 000006/18/PA  del 14/03/2018;25/06/2018;590;0;161;1;Spese correnti;3;Acquisto di beni e servizi;2;Acquisto di servizi;9;Manutenzione ordinaria e riparazioni;4;Manutenzione ordinaria e riparazioni di impianti e macchinari;25/06/2018
839;1;0;79,3;79,3;CIMA-ESA  SRL;Z8E1E433CC;SALDO Fatt.n. 000006/18/PA  del 14/03/2018;25/06/2018;3181;0;162;1;Spese correnti;3;Acquisto di beni e servizi;2;Acquisto di servizi;9;Manutenzione ordinaria e riparazioni;4;Manutenzione ordinaria e riparazioni di impianti e macchinari;25/06/2018
840;1;0;2.088,03;2.088,03;F.LLI BERTOLI ELETTROIMPIANTI S.N.C. DI BERTOLI G. & M.;Z2422AF0EB;SALDO Fatt.n. 000002/E  del 30/03/2018;25/06/2018;580;0;105;1;Spese correnti;3;Acquisto di beni e servizi;1;Acquisto di beni;2;Altri beni di consumo;999;Altri beni e materiali di consumo n.a.c.;25/06/2018
841;1;0;1.171,20;1.171,20;CLYCO SRL;ZE9235A967;SALDO Fatt.n. 000003  del 30/04/2018 RINNOVO CANONE ANNUALE UTENZA GOOGLE APPS CON ASSISTENZA TELEFONICA;25/06/2018;593;1;263;1;Spese correnti;3;Acquisto di beni e servizi;2;Acquisto di servizi;5;Utenze e canoni;999;Utenze e canoni per altri servizi n.a.c.;25/06/2018
842;1;0;846,51;846,51;L'UFFICIO SRL;Z491C725FE;SALDO Fatt.n. 58/P  del 20/04/2018 FATTURA PA;25/06/2018;403;0;135;1;Spese correnti;3;Acquisto di beni e servizi;2;Acquisto di servizi;7;Utilizzo di beni di terzi;8;Noleggi di impianti e macchinari;25/06/2018
843;1;0;451,36;451,36;C.I.R. FOOD S.C.;6368287CAB;SALDO Fatt.n. 5200036140  del 31/12/2017 Destinatario:0000522112,SC. INFANZIA DI CAOMAGGIORE-BAMBINICOMUNE DI CAOMAGGIORE,VIA TORINO 2,CINTO  CAO MAGGIORE,30020,VE;25/06/2018;3000;0;102;1;Spese correnti;3;Acquisto di beni e servizi;2;Acquisto di servizi;15;Contratti di servizio pubblico;6;Contratti di servizio per le mense scolastiche;25/06/2018
844;1;0;221,5;221,5;PREFETTURA DI VENEZIA; ;C.C. 4 DEL 14/02/2018 - ACQUISTO SUPPORTI CARTACEI CARTE IDENTITA' DAL MINISTERO DELL'INTERNO;27/06/2018;400;0;66;1;Spese correnti;3;Acquisto di beni e servizi;1;Acquisto di beni;2;Altri beni di consumo;14;Stampati specialistici;27/06/2018
846;1;0;45;45;TESORIERE COMUNALE; ;C.C. 7 DEL 27.02.2018 - IMPOSTA DI BOLLO - CONTRATTO REP 1552/2017 - LAVORI DI ABBATTIMENTO BARRIERE ARCHITETTONICHE C. CULTURALE - DITTA CDF;27/06/2018;400;0;286;1;Spese correnti;3;Acquisto di beni e servizi;1;Acquisto di beni;2;Altri beni di consumo;1;Carta, cancelleria e stampati;27/06/2018
847;1;0;295,3;5.938,72;ASE ACEGASAPSAMGA SERVIZI ELETTRICI SPA;6309396649;SALDO Fatt.n. 331800000565  del 15/03/2018 ALTRI SERVIZI;27/06/2018;593;1;287;1;Spese correnti;3;Acquisto di beni e servizi;2;Acquisto di servizi;5;Utenze e canoni;6;Gas;27/06/2018
847;2;0;295,32;5.938,72;ASE ACEGASAPSAMGA SERVIZI ELETTRICI SPA;6309396649;Fatt.n. 331800000157 del 09/02/2018 QUOTA AMMORTAMENTO LAVORI - 3^ RATA 2017/2018;27/06/2018;593;1;287;1;Spese correnti;3;Acquisto di beni e servizi;2;Acquisto di servizi;5;Utenze e canoni;6;Gas;27/06/2018
847;3;0;295,32;5.938,72;ASE ACEGASAPSAMGA SERVIZI ELETTRICI SPA;6309396649;Fatt.n. 331800000227 del 15/02/2018 QUOTA AMMORTAMENTO LAVORI 4^ RATA STAGIONE 2017/2018;27/06/2018;593;1;287;1;Spese correnti;3;Acquisto di beni e servizi;2;Acquisto di servizi;5;Utenze e canoni;6;Gas;27/06/2018
847;4;0;1.684,26;5.938,72;ASE ACEGASAPSAMGA SERVIZI ELETTRICI SPA;6309396649;Fatt.n. 331800000563 del 15/03/2018 ALTRI SERVIZI;27/06/2018;593;1;287;1;Spese correnti;3;Acquisto di beni e servizi;2;Acquisto di servizi;5;Utenze e canoni;6;Gas;27/06/2018
847;5;0;1.684,26;5.938,72;ASE ACEGASAPSAMGA SERVIZI ELETTRICI SPA;6309396649;SALDO Fatt.n. 331800000022  del 24/01/2018 SERVIZIO FORNITURA CALORE - 3^ RATA STAGIONE 2017/208;27/06/2018;593;1;287;1;Spese correnti;3;Acquisto di beni e servizi;2;Acquisto di servizi;5;Utenze e canoni;6;Gas;27/06/2018
847;6;0;1.684,26;5.938,72;ASE ACEGASAPSAMGA SERVIZI ELETTRICI SPA;6309396649;Fatt.n. 331800000226 del 15/02/2018 SERVIZIO FORNITURA CALORE - 4^ RATA STAGIONE 2017/2018;27/06/2018;593;1;287;1;Spese correnti;3;Acquisto di beni e servizi;2;Acquisto di servizi;5;Utenze e canoni;6;Gas;27/06/2018
848;1;0;83,65;250,95;ASE ACEGASAPSAMGA SERVIZI ELETTRICI SPA;6309396649;Fatt.n. 331800000022 del 24/01/2018 SERVIZIO FORNITURA CALORE - 3^ RATA STAGIONE 2017/208;27/06/2018;595;0;288;1;Spese correnti;3;Acquisto di beni e servizi;2;Acquisto di servizi;5;Utenze e canoni;6;Gas;27/06/2018
848;2;0;83,65;250,95;ASE ACEGASAPSAMGA SERVIZI ELETTRICI SPA;6309396649;Fatt.n. 331800000226 del 15/02/2018 SERVIZIO FORNITURA CALORE - 4^ RATA STAGIONE 2017/2018;27/06/2018;595;0;288;1;Spese correnti;3;Acquisto di beni e servizi;2;Acquisto di servizi;5;Utenze e canoni;6;Gas;27/06/2018
848;3;0;83,65;250,95;ASE ACEGASAPSAMGA SERVIZI ELETTRICI SPA;6309396649;Fatt.n. 331800000563 del 15/03/2018 ALTRI SERVIZI;27/06/2018;595;0;288;1;Spese correnti;3;Acquisto di beni e servizi;2;Acquisto di servizi;5;Utenze e canoni;6;Gas;27/06/2018
849;1;0;1.215,83;3.647,51;ASE ACEGASAPSAMGA SERVIZI ELETTRICI SPA;6309396649;Fatt.n. 331800000022 del 24/01/2018 SERVIZIO FORNITURA CALORE - 3^ RATA STAGIONE 2017/208;27/06/2018;2803;0;292;1;Spese correnti;3;Acquisto di beni e servizi;2;Acquisto di servizi;5;Utenze e canoni;6;Gas;27/06/2018
849;2;0;1.215,84;3.647,51;ASE ACEGASAPSAMGA SERVIZI ELETTRICI SPA;6309396649;Fatt.n. 331800000563 del 15/03/2018 ALTRI SERVIZI;27/06/2018;2803;0;292;1;Spese correnti;3;Acquisto di beni e servizi;2;Acquisto di servizi;5;Utenze e canoni;6;Gas;27/06/2018
849;3;0;1.215,84;3.647,51;ASE ACEGASAPSAMGA SERVIZI ELETTRICI SPA;6309396649;Fatt.n. 331800000226 del 15/02/2018 SERVIZIO FORNITURA CALORE - 4^ RATA STAGIONE 2017/2018;27/06/2018;2803;0;292;1;Spese correnti;3;Acquisto di beni e servizi;2;Acquisto di servizi;5;Utenze e canoni;6;Gas;27/06/2018
850;1;0;2.313,73;6.941,19;ASE ACEGASAPSAMGA SERVIZI ELETTRICI SPA;6309396649;Fatt.n. 331800000022 del 24/01/2018 SERVIZIO FORNITURA CALORE - 3^ RATA STAGIONE 2017/208;27/06/2018;2975;1;289;1;Spese correnti;3;Acquisto di beni e servizi;2;Acquisto di servizi;5;Utenze e canoni;6;Gas;27/06/2018
850;2;0;2.313,73;6.941,19;ASE ACEGASAPSAMGA SERVIZI ELETTRICI SPA;6309396649;Fatt.n. 331800000226 del 15/02/2018 SERVIZIO FORNITURA CALORE - 4^ RATA STAGIONE 2017/2018;27/06/2018;2975;1;289;1;Spese correnti;3;Acquisto di beni e servizi;2;Acquisto di servizi;5;Utenze e canoni;6;Gas;27/06/2018
850;3;0;2.313,73;6.941,19;ASE ACEGASAPSAMGA SERVIZI ELETTRICI SPA;6309396649;Fatt.n. 331800000563 del 15/03/2018 ALTRI SERVIZI;27/06/2018;2975;1;289;1;Spese correnti;3;Acquisto di beni e servizi;2;Acquisto di servizi;5;Utenze e canoni;6;Gas;27/06/2018
851;1;0;200,4;5.122,34;ASE ACEGASAPSAMGA SERVIZI ELETTRICI SPA;6309396649;Fatt.n. 331800000565 del 15/03/2018 ALTRI SERVIZI;27/06/2018;2975;2;290;1;Spese correnti;3;Acquisto di beni e servizi;2;Acquisto di servizi;5;Utenze e canoni;6;Gas;27/06/2018
851;2;0;200,41;5.122,34;ASE ACEGASAPSAMGA SERVIZI ELETTRICI SPA;6309396649;Fatt.n. 331800000227 del 15/02/2018 QUOTA AMMORTAMENTO LAVORI 4^ RATA STAGIONE 2017/2018;27/06/2018;2975;2;290;1;Spese correnti;3;Acquisto di beni e servizi;2;Acquisto di servizi;5;Utenze e canoni;6;Gas;27/06/2018
851;3;0;200,41;5.122,34;ASE ACEGASAPSAMGA SERVIZI ELETTRICI SPA;6309396649;Fatt.n. 331800000157 del 09/02/2018 QUOTA AMMORTAMENTO LAVORI - 3^ RATA 2017/2018;27/06/2018;2975;2;290;1;Spese correnti;3;Acquisto di beni e servizi;2;Acquisto di servizi;5;Utenze e canoni;6;Gas;27/06/2018
851;4;0;1.507,04;5.122,34;ASE ACEGASAPSAMGA SERVIZI ELETTRICI SPA;6309396649;Fatt.n. 331800000226 del 15/02/2018 SERVIZIO FORNITURA CALORE - 4^ RATA STAGIONE 2017/2018;27/06/2018;2975;2;290;1;Spese correnti;3;Acquisto di beni e servizi;2;Acquisto di servizi;5;Utenze e canoni;6;Gas;27/06/2018
851;5;0;1.507,04;5.122,34;ASE ACEGASAPSAMGA SERVIZI ELETTRICI SPA;6309396649;Fatt.n. 331800000563 del 15/03/2018 ALTRI SERVIZI;27/06/2018;2975;2;290;1;Spese correnti;3;Acquisto di beni e servizi;2;Acquisto di servizi;5;Utenze e canoni;6;Gas;27/06/2018
851;6;0;1.507,04;5.122,34;ASE ACEGASAPSAMGA SERVIZI ELETTRICI SPA;6309396649;Fatt.n. 331800000022 del 24/01/2018 SERVIZIO FORNITURA CALORE - 3^ RATA STAGIONE 2017/208;27/06/2018;2975;2;290;1;Spese correnti;3;Acquisto di beni e servizi;2;Acquisto di servizi;5;Utenze e canoni;6;Gas;27/06/2018
852;1;0;1.947,11;5.841,33;ASE ACEGASAPSAMGA SERVIZI ELETTRICI SPA;6309396649;Fatt.n. 331800000226 del 15/02/2018 SERVIZIO FORNITURA CALORE - 4^ RATA STAGIONE 2017/2018;27/06/2018;3186;1;291;1;Spese correnti;3;Acquisto di beni e servizi;2;Acquisto di servizi;5;Utenze e canoni;6;Gas;27/06/2018
852;2;0;1.947,11;5.841,33;ASE ACEGASAPSAMGA SERVIZI ELETTRICI SPA;6309396649;Fatt.n. 331800000022 del 24/01/2018 SERVIZIO FORNITURA CALORE - 3^ RATA STAGIONE 2017/208;27/06/2018;3186;1;291;1;Spese correnti;3;Acquisto di beni e servizi;2;Acquisto di servizi;5;Utenze e canoni;6;Gas;27/06/2018
852;3;0;1.947,11;5.841,33;ASE ACEGASAPSAMGA SERVIZI ELETTRICI SPA;6309396649;Fatt.n. 331800000563 del 15/03/2018 ALTRI SERVIZI;27/06/2018;3186;1;291;1;Spese correnti;3;Acquisto di beni e servizi;2;Acquisto di servizi;5;Utenze e canoni;6;Gas;27/06/2018
853;1;0;888,92;2.666,76;ASE ACEGASAPSAMGA SERVIZI ELETTRICI SPA;6309396649;Fatt.n. 331800000226 del 15/02/2018 SERVIZIO FORNITURA CALORE - 4^ RATA STAGIONE 2017/2018;27/06/2018;3186;2;293;1;Spese correnti;3;Acquisto di beni e servizi;2;Acquisto di servizi;5;Utenze e canoni;6;Gas;27/06/2018
853;2;0;888,92;2.666,76;ASE ACEGASAPSAMGA SERVIZI ELETTRICI SPA;6309396649;Fatt.n. 331800000022 del 24/01/2018 SERVIZIO FORNITURA CALORE - 3^ RATA STAGIONE 2017/208;27/06/2018;3186;2;293;1;Spese correnti;3;Acquisto di beni e servizi;2;Acquisto di servizi;5;Utenze e canoni;6;Gas;27/06/2018
853;3;0;888,92;2.666,76;ASE ACEGASAPSAMGA SERVIZI ELETTRICI SPA;6309396649;Fatt.n. 331800000563 del 15/03/2018 ALTRI SERVIZI;27/06/2018;3186;2;293;1;Spese correnti;3;Acquisto di beni e servizi;2;Acquisto di servizi;5;Utenze e canoni;6;Gas;27/06/2018
854;1;0;317,61;14.563,02;ASE ACEGASAPSAMGA SERVIZI ELETTRICI SPA;6309396649;Fatt.n. 331800000157 del 09/02/2018 QUOTA AMMORTAMENTO LAVORI - 3^ RATA 2017/2018;27/06/2018;6496;1;294;1;Spese correnti;3;Acquisto di beni e servizi;2;Acquisto di servizi;5;Utenze e canoni;6;Gas;27/06/2018
854;2;0;317,61;14.563,02;ASE ACEGASAPSAMGA SERVIZI ELETTRICI SPA;6309396649;Fatt.n. 331800000565 del 15/03/2018 ALTRI SERVIZI;27/06/2018;6496;1;294;1;Spese correnti;3;Acquisto di beni e servizi;2;Acquisto di servizi;5;Utenze e canoni;6;Gas;27/06/2018
854;3;0;317,61;14.563,02;ASE ACEGASAPSAMGA SERVIZI ELETTRICI SPA;6309396649;Fatt.n. 331800000227 del 15/02/2018 QUOTA AMMORTAMENTO LAVORI 4^ RATA STAGIONE 2017/2018;27/06/2018;6496;1;294;1;Spese correnti;3;Acquisto di beni e servizi;2;Acquisto di servizi;5;Utenze e canoni;6;Gas;27/06/2018
854;4;0;4.536,73;14.563,02;ASE ACEGASAPSAMGA SERVIZI ELETTRICI SPA;6309396649;Fatt.n. 331800000563 del 15/03/2018 ALTRI SERVIZI;27/06/2018;6496;1;294;1;Spese correnti;3;Acquisto di beni e servizi;2;Acquisto di servizi;5;Utenze e canoni;6;Gas;27/06/2018
854;5;0;4.536,73;14.563,02;ASE ACEGASAPSAMGA SERVIZI ELETTRICI SPA;6309396649;Fatt.n. 331800000226 del 15/02/2018 SERVIZIO FORNITURA CALORE - 4^ RATA STAGIONE 2017/2018;27/06/2018;6496;1;294;1;Spese correnti;3;Acquisto di beni e servizi;2;Acquisto di servizi;5;Utenze e canoni;6;Gas;27/06/2018
854;6;0;4.536,73;14.563,02;ASE ACEGASAPSAMGA SERVIZI ELETTRICI SPA;6309396649;Fatt.n. 331800000022 del 24/01/2018 SERVIZIO FORNITURA CALORE - 3^ RATA STAGIONE 2017/208;27/06/2018;6496;1;294;1;Spese correnti;3;Acquisto di beni e servizi;2;Acquisto di servizi;5;Utenze e canoni;6;Gas;27/06/2018
855;1;0;507,96;507,96;GLOBAL POWER SPA;622385037F;Fatt.n. V0/52865 del 02/05/2018 Fattura Energia Elettrica-periodo aprile 2018 - MUNICIPIO;28/06/2018;593;1;67;1;Spese correnti;3;Acquisto di beni e servizi;2;Acquisto di servizi;5;Utenze e canoni;4;Energia elettrica;28/06/2018
856;1;0;74,02;74,02;GLOBAL POWER SPA;622385037F;Fatt.n. V0/52871 del 02/05/2018 Fattura Energia Elettrica - periodo aprile 2018 - VIA ROMA;28/06/2018;593;2;68;1;Spese correnti;3;Acquisto di beni e servizi;2;Acquisto di servizi;5;Utenze e canoni;4;Energia elettrica;28/06/2018
857;1;0;68,76;68,76;GLOBAL POWER SPA;622385037F;Fatt.n. V0/52875 del 02/05/2018 Fattura Energia Elettrica - Magazzino Via Leonardo da Vinci;28/06/2018;593;3;69;1;Spese correnti;3;Acquisto di beni e servizi;2;Acquisto di servizi;5;Utenze e canoni;4;Energia elettrica;28/06/2018
858;1;0;36,91;125,14;GLOBAL POWER SPA;622385037F;Fatt.n. V0/52879 del 02/05/2018 Fattura Energia Elettrica - periodo aprile 2018 - via marconi n. 24;28/06/2018;593;4;71;1;Spese correnti;3;Acquisto di beni e servizi;2;Acquisto di servizi;5;Utenze e canoni;4;Energia elettrica;28/06/2018
858;2;0;88,23;125,14;GLOBAL POWER SPA;622385037F;Fatt.n. V0/52878 del 02/05/2018 Fattura Energia Elettrica - periodo aprile 2018 - via marconi n. 24;28/06/2018;593;4;71;1;Spese correnti;3;Acquisto di beni e servizi;2;Acquisto di servizi;5;Utenze e canoni;4;Energia elettrica;28/06/2018
859;1;0;56,32;56,32;GLOBAL POWER SPA;622385037F;Fatt.n. V0/52866 del 02/05/2018 Fattura Energia Elettrica - periodo aprile 2018 - sala Via Marconi n. 26;28/06/2018;593;6;70;1;Spese correnti;3;Acquisto di beni e servizi;2;Acquisto di servizi;5;Utenze e canoni;4;Energia elettrica;28/06/2018
860;1;0;51,44;51,44;GLOBAL POWER SPA;622385037F;Fatt.n. V0/52874 del 02/05/2018 Fattura Energia Elettrica periodo aprile 2018 - centro culturale;28/06/2018;595;0;72;1;Spese correnti;3;Acquisto di beni e servizi;2;Acquisto di servizi;5;Utenze e canoni;4;Energia elettrica;28/06/2018
861;1;0;293,38;293,38;GLOBAL POWER SPA;622385037F;Fatt.n. V0/52873 del 02/05/2018 Fattura Energia Elettrica Fattura Energia Elettrica - mese 04/2018 - scuola materna e media;28/06/2018;2803;0;74;1;Spese correnti;3;Acquisto di beni e servizi;2;Acquisto di servizi;5;Utenze e canoni;4;Energia elettrica;28/06/2018
862;1;0;436,27;436,27;GLOBAL POWER SPA;622385037F;Fatt.n. V0/52872 del 02/05/2018 Fattura Energia Elettrica periodo aprile 2018 - scuola elementare;28/06/2018;2975;1;73;1;Spese correnti;3;Acquisto di beni e servizi;2;Acquisto di servizi;5;Utenze e canoni;4;Energia elettrica;28/06/2018
863;1;0;469,83;469,83;GLOBAL POWER SPA;622385037F;Fatt.n. V0/52873 del 02/05/2018 Fattura Energia Elettrica Fattura Energia Elettrica - mese 04/2018 - scuola materna e media;28/06/2018;3186;1;75;1;Spese correnti;3;Acquisto di beni e servizi;2;Acquisto di servizi;5;Utenze e canoni;4;Energia elettrica;28/06/2018
864;1;0;37,37;37,37;GLOBAL POWER SPA;622385037F;Fatt.n. V0/52867 del 02/05/2018 Fattura Energia Elettrica - periodo aprile 2018 - illuminazione votiva;28/06/2018;5190;0;76;1;Spese correnti;3;Acquisto di beni e servizi;2;Acquisto di servizi;5;Utenze e canoni;4;Energia elettrica;28/06/2018
865;1;0;88,18;88,18;GLOBAL POWER SPA;622385037F;Fatt.n. V0/52870 del 02/05/2018 Fattura Energia Elettrica - mese 04/2018 - impianto sollevamento;28/06/2018;5810;0;80;1;Spese correnti;3;Acquisto di beni e servizi;2;Acquisto di servizi;5;Utenze e canoni;4;Energia elettrica;28/06/2018
866;1;0;1.019,96;1.019,96;GLOBAL POWER SPA;622385037F;Fatt.n. V0/52868 del 02/05/2018 Fattura Energia Elettrica mese 04/2018 impianti sportivi palazzetto;28/06/2018;6496;1;77;1;Spese correnti;3;Acquisto di beni e servizi;2;Acquisto di servizi;5;Utenze e canoni;4;Energia elettrica;28/06/2018
867;1;0;132,69;132,69;GLOBAL POWER SPA;622385037F;Fatt.n. V0/52869 del 02/05/2018 Fattura Energia Elettrica - mese 04/2018 - campo bocce;28/06/2018;6496;2;78;1;Spese correnti;3;Acquisto di beni e servizi;2;Acquisto di servizi;5;Utenze e canoni;4;Energia elettrica;28/06/2018
868;1;0;37,27;5.037,96;GLOBAL POWER SPA;622385037F;Fatt.n. V0/52877 del 02/05/2018 Fattura Energia Elettrica - mese 04/2018 - illuminazione pubblica via basedat;28/06/2018;7470;0;79;1;Spese correnti;3;Acquisto di beni e servizi;2;Acquisto di servizi;5;Utenze e canoni;4;Energia elettrica;28/06/2018
868;2;0;89,12;5.037,96;GLOBAL POWER SPA;622385037F;Fatt.n. V0/52876 del 02/05/2018 Fattura Energia Elettrica - Fattura Energia Elettrica - mese 04/2018 - illuminazione pubblica v. castello;28/06/2018;7470;0;79;1;Spese correnti;3;Acquisto di beni e servizi;2;Acquisto di servizi;5;Utenze e canoni;4;Energia elettrica;28/06/2018
868;3;0;290,49;5.037,96;GLOBAL POWER SPA;622385037F;Fatt.n. V0/52880 del 02/05/2018 Fattura Energia Elettrica - mese 04/2018 - illuminazione pubblica - via venezia;28/06/2018;7470;0;79;1;Spese correnti;3;Acquisto di beni e servizi;2;Acquisto di servizi;5;Utenze e canoni;4;Energia elettrica;28/06/2018
868;4;0;4.621,08;5.037,96;GLOBAL POWER SPA;622385037F;Fatt.n. V0/52881 del 02/05/2018 Fattura Energia Elettrica - mese 04/2018 - illuminazione pubblica;28/06/2018;7470;0;79;1;Spese correnti;3;Acquisto di beni e servizi;2;Acquisto di servizi;5;Utenze e canoni;4;Energia elettrica;28/06/2018
